Cogmind - Beta 12 X1 *** ADVENTURER MODE // 2022.07.25 @ 17:25:26 Player: Owlsley Result: Establishing 0b11! Performance ------------- Evolutions (9) 4500 Regions Visited (39) 7800 Robots Destroyed (642) 3210 Value Destroyed (30728) 30728 Prototype IDs (282) 5640 Alien Tech Used (5) 1000 Bonus (37193) 37193 TOTAL SCORE: 90071 Bonus ------- Triggered High Security 500 High Alert Combat Kills 3577 Follower Combat Kills 2059 Entered Garrisons 800 Network Hubs Disabled 400 Met Data Miner 300 Met Zhirov 300 Met Warlord at Base 500 MAIN.C Attacked Warlord 500 Warlord Defense Kills 1554 Met R17 at Cetus 500 Met Warlord at Research 2000 Destroyed MAIN.C Guards 500 Met MAIN.C 5000 Destroyed MAIN.C Shell 5000 Destroyed MAIN.C 10000 Met Warlord at Command 2000 Win 3000 Friendly Fire -1297 Cogmind --------- Core Integrity 1404/1600 Matter 266/300 Energy 349/370 System Corruption 7% Temperature Cool (14) Movement Walking (188) Ox1 Location 0b11 Command Parts ------- > --- POWER (3) -------- Light Quantum Reactor Light Quantum Reactor Light Quantum Reactor > --- PROPULSION (7) --- Biometal Leg Centrium Leg Centrium Leg Centrium Leg Centrium Leg Centrium Leg High-density Centrium Leg > --- UTILITY (12) ----- Experimental Cooling System Huge Storage Unit Heavy Regenerative Plating Wardrone Bay (1/1) > --- WEAPON (3) ------- Vortex Driver Vortex Driver Z-bomb Delivery System > --- INVENTORY (25) --- Quantum Reactor Quantum Reactor Quantum Reactor Centrium Leg Experimental Energy Well (600) Medium Matter Pod (0) Energy Filter Experimental Cloaking Device Advanced Powered Armor Advanced Powered Armor Graphene Brace Enhanced Quantum Rifle Enhanced Nova Cannon Improved Potential Cannon Helical Railgun Helical Railgun Heavy Gauss Cannon Heavy Gauss Cannon Peak State ------------ > --- POWER ------------ Light Quantum Reactor Light Quantum Reactor Light Quantum Reactor > --- PROPULSION ------- Biometal Leg Centrium Leg Centrium Leg Centrium Leg Centrium Leg Centrium Leg High-density Centrium Leg > --- UTILITY ---------- Experimental Cooling System Huge Storage Unit Heavy Regenerative Plating Wardrone Bay > --- WEAPON ----------- Helical Railgun Helical Railgun Z-bomb Delivery System > --- INVENTORY -------- Quantum Reactor Quantum Reactor Quantum Reactor Centrium Leg Experimental Energy Well Medium Matter Pod Experimental Cloaking Device Advanced Powered Armor Advanced Powered Armor Wardrone Bay Enhanced Quantum Rifle Vortex Driver Vortex Driver Enhanced Nova Cannon Improved Potential Cannon Heavy Gauss Cannon Heavy Gauss Cannon [Rating: 275] Favorites ----------- Power Quantum Reactor Engine F-cell Engine Power Core Light Nuclear Core Reactor Quantum Reactor Propulsion Enhanced Biometal Leg Treads Improved Heavy Treads Leg Enhanced Biometal Leg Hover Unit Improved Airjet Utility High-capacity Storage Unit Device Advanced Heat Sink Storage High-capacity Storage Unit Processor Spectral Analyzer Hackware Advanced Hacking Suite Protection Centrium Medium Armor Plating Artifact Phase Redirector Weapon Advanced KE Penetrator Energy Gun Improved Medium Laser Energy Cannon Advanced Beam Cannon Ballistic Gun Advanced KE Penetrator Ballistic Cannon Heavy Linear Accelerator Launcher Z-bomb Delivery System Special Weapon Plasma Cutter Slashing Weapon Makeshift Axe Build | -11 -10 -10 -9 -9 -8 -8 -8 -8 -8 -8 -8 -8 -7 -7 -7 -7 -6 -6 -6 -6 -6 -6 -5 -5 -5 -5 -4 -4 -4 -4 -4 -3 -3 -3 -2 -2 -2 -1 -1 ------- Run | Scr Mat Min Mat Sto Mat Gar Mat Gar Mat Gar Mat Gar Fac Low Low Dat Pro Fac Ext Cet Arc Hub Fac Upp Upp War Pro Fac Upp Upp Zhi Pro Res Tes Res Qua Sec Acc Com Slots Evolved 18 | . . . 2 . 2 . . . . . . . 2 . . . . 2 . . . . 2 . . . . 2 . . . . 2 . 2 . . 2 . Power 2 | . . . . . . . . . . . . . . . . . . . . . . . 1 . . . . . . . . . . . 1 . . . . Propulsion 5 | . . . 1 . 1 . . . . . . . . . . . . . . . . . . . . . . . . . . . 1 . 1 . . 1 . Utility 10 | . . . 1 . . . . . . . . . 2 . . . . 2 . . . . 1 . . . . 2 . . . . 1 . . . . 1 . Weapon 1 | . . . . . 1 . . . . . . . . . . . . . . . . . . . . . . . . . . . . . . . . . . Parts Attached 416 | 1 6 3 13 25 14 15 8 1 8 5 5 9 8 3 3 . 3 12 6 10 4 29 31 3 2 16 4 14 2 5 4 2 22 25 35 14 14 12 20 Power 41 | . . 1 . 3 1 1 . . . 3 . 1 . . . . . 1 1 1 . 2 2 . . 1 . . 1 1 . . 3 2 4 1 3 4 4 Engine 7 | . . 1 . 3 1 . . . . 1 . . . . . . . . . . . . 1 . . . . . . . . . . . . . . . . Core 8 | . . . . . . 1 . . . 2 . 1 . . . . . 1 1 . . . . . . . . . 1 . . . . 1 . . . . . Reactor 26 | . . . . . . . . . . . . . . . . . . . . 1 . 2 1 . . 1 . . . 1 . . 3 1 4 1 3 4 4 Propulsion 63 | . 2 . 2 8 6 2 2 . 1 1 2 . . . 1 . . 1 . 2 . 7 . . . 2 . 4 . . . . 2 4 6 3 1 2 2 Treads 30 | . 2 . 2 8 6 2 1 . 1 1 2 . . . 1 . . 1 . 2 . 1 . . . . . . . . . . . . . . . . . Leg 32 | . . . . . . . . . . . . . . . . . . . . . . 6 . . . 2 . 4 . . . . 2 4 6 3 1 2 2 Wheel . | . . . . . . . . . . . . . . . . . . . . . . . . . . . . . . . . . . . . . . . . Hover 1 | . . . . . . . 1 . . . . . . . . . . . . . . . . . . . . . . . . . . . . . . . . Flight . | . . . . . . . . . . . . . . . . . . . . . . . . . . . . . . . . . . . . . . . . Utility 173 | 1 2 1 4 5 2 4 1 1 1 1 1 . 8 1 2 . 1 5 4 2 4 13 23 3 2 10 4 10 . 1 3 . 4 10 12 8 10 3 6 Device 95 | 1 1 1 2 2 2 4 . . . 1 . . 4 1 1 . . 2 2 1 2 6 11 2 . 7 4 7 . . 1 . 2 7 7 5 6 . 3 Storage 7 | . 1 . 1 . . . . . . . . . 1 . . . . . . . . . . . . . . . . . . . . 2 2 . . . . Processor 12 | . . . . . . . . . . . . . 2 . . . . . . . . 1 1 . . 2 . 1 . 1 . . . 1 . 1 1 . 1 Hackware 4 | . . . . . . . . . . . . . . . . . . . . . . . 1 . . . . . . . . . 1 . . . . 2 . Protection 52 | . . . 1 3 . . 1 1 1 . 1 . 1 . 1 . 1 3 2 1 2 6 10 1 2 1 . 2 . . 2 . 1 . 3 1 1 1 2 Artifact 3 | . . . . . . . . . . . . . . . . . . . . . . . . . . . . . . . . . . . . 1 2 . . Weapon 139 | . 2 1 7 9 5 8 5 . 6 . 2 8 . 2 . . 2 5 1 5 . 7 6 . . 3 . . 1 3 1 2 13 9 13 2 . 3 8 Energy Gun 25 | . 1 1 6 7 2 4 2 . . . . . . . . . . . . . . . . . . 1 . . . . . . . . . . . 1 . Energy Cannon 16 | . . . . . 2 2 . . 3 . . . . . . . . . . . . 2 . . . 1 . . . . . . . 1 1 . . 1 3 Ballistic Gun 73 | . 1 . . . . . 3 . 2 . 1 6 . 1 . . 1 4 . 5 . 4 6 . . 1 . . 1 2 1 1 9 6 12 2 . 1 3 Ballistic Cannon 2 | . . . . . . . . . . . 1 . . . . . . . 1 . . . . . . . . . . . . . . . . . . . . Launcher 16 | . . . 1 . 1 1 . . 1 . . 1 . 1 . . 1 . . . . . . . . . . . . 1 . 1 4 1 . . . . 2 Special Weapon 1 | . . . . . . 1 . . . . . . . . . . . . . . . . . . . . . . . . . . . . . . . . . Impact Weapon . | . . . . . . . . . . . . . . . . . . . . . . . . . . . . . . . . . . . . . . . . Slashing Weapon 6 | . . . . 2 . . . . . . . 1 . . . . . 1 . . . 1 . . . . . . . . . . . 1 . . . . . Piercing Weapon . | . . . . . . . . . . . . . . . . . . . . . . . . . . . . . . . . . . . . . . . . Special Melee Weapon . | . . . . . . . . . . . . . . . . . . . . . . . . . . . . . . . . . . . . . . . . Unidentified Prototypes 47 | . . . 2 1 1 1 2 . . . . . . . . . . 1 . 3 . 6 1 . . 9 . 1 . . 2 . . 7 2 5 2 1 . Parts Lost 33 | . 1 . 2 4 . . . . . . . . . . . . 1 . 1 . . . 3 . . . . 2 2 1 . . 1 . 3 . 1 8 3 Power 9 | . . . . 1 . . . . . . . . . . . . . . . . . . . . . . . . 1 1 . . 1 . 1 . . 3 1 Propulsion 3 | . . . 1 1 . . . . . . . . . . . . . . . . . . . . . . . . . . . . . . . . . 1 . Utility 13 | . . . . 1 . . . . . . . . . . . . 1 . 1 . . . 1 . . . . 2 . . . . . . 2 . 1 2 2 Weapon 8 | . 1 . 1 1 . . . . . . . . . . . . . . . . . . 2 . . . . . 1 . . . . . . . . 2 . Highest Loss Streak 8 | . 1 . 1 1 . . . . . . . . . . . . 1 . 1 . . . 2 . . . . 2 2 1 . . 1 . 1 . 1 8 1 To Critical Strikes 4 | . . . . . . . . . . . . . . . . . . . . . . . 1 . . . . . 1 . . . 1 . . . . 1 . Average Slot Usage (%) 88 | . 100 99 99 99 99 87 80 81 79 81 71 71 75 76 76 76 75 84 82 79 79 83 99 94 94 93 94 96 99 100 100 100 96 97 96 94 97 96 87 Engine 3 | . 14 13 11 10 9 7 . . . 1 9 3 . . . . . . . . . . 5 5 5 5 5 5 5 5 5 5 2 . . . . . . Core 2 | . . . . . . 1 9 9 9 7 . 5 7 7 7 7 7 6 6 1 . . . . . . . . . . . . . 2 . . . . . Reactor 3 | . . . . . . . . . . . . . . . . . . . . 4 6 6 4 5 5 5 5 5 3 4 5 5 5 6 12 13 13 11 12 Treads 12 | . 27 28 33 32 36 23 17 18 16 18 17 18 15 15 15 15 15 13 13 12 13 10 . . . . . . . . . . . . . . . . . Leg 8 | . . . . . . . . . . . . . . . . . . . . . . 4 23 23 23 23 23 20 21 21 21 21 23 23 25 26 26 27 28 Device 12 | . 14 14 15 10 17 18 9 9 9 10 9 9 7 7 6 7 2 10 2 6 6 12 7 11 11 13 17 24 26 25 21 21 19 20 20 17 19 14 10 Storage 7 | . 14 14 11 11 9 9 9 9 9 9 9 9 7 7 7 7 7 6 6 6 6 6 5 5 5 5 5 5 5 5 5 5 4 4 6 5 4 4 4 Processor 7 | . . . . . . . . . . . . . 13 15 15 15 15 13 13 13 13 13 11 11 11 11 11 10 10 10 15 15 14 16 7 7 9 12 11 Protection 8 | . . . 6 10 . . 8 9 8 7 8 9 7 7 7 7 11 15 23 13 12 8 20 10 11 8 5 9 10 10 10 10 5 2 3 4 4 3 5 Energy Gun 3 | . 5 4 21 21 22 20 14 . . . . . . . . . . . . . . . . . . . . . . . . . . . . . . 1 2 Energy Cannon 1 | . . . . . 4 2 . . 17 18 . . . . . . . . . . . . . . . . . . . . . . . . . . . . 3 Ballistic Gun 12 | . 22 23 . . . . 12 27 9 9 8 8 7 6 7 7 7 17 11 18 20 19 16 17 17 16 17 15 15 15 15 14 13 13 12 13 13 9 1 Ballistic Cannon 1 | . . . . . . . . . . . 9 9 7 7 7 7 7 1 3 . . . . . . . . . . . . . . . . . . . . Naked Turns . | . . . . . . . . . . . . . . . . . . . . . . . . . . . . . . . . . . . . . . . . Heaviest Build 245 | 12 27 33 58 65 65 62 66 67 67 70 88 88 87 85 91 85 104 111 126 124 117 117 120 119 117 117 112 119 115 110 107 107 125 125 166 180 180 187 245 Greatest Support 212 | 20 40 40 60 60 80 150 150 150 150 150 150 150 150 150 150 150 150 150 150 160 160 160 120 120 120 120 120 120 120 120 120 120 145 145 175 182 182 212 210 Greatest Overweight (x) 3 | . . . . 1 . . . . . . . . . . . . . . . . . 3 . . . 1 . 1 . . . . . 1 . . . . 1 Average Overweight (x) . | . . . . . . . . . . . . . . . . . . . . . . . . . . . . . . . . . . . . . . . . Largest Inventory Capacity 25 | 8 15 15 20 20 20 20 20 20 20 20 20 20 20 20 20 20 20 20 20 20 20 20 20 20 20 20 20 20 20 20 20 20 20 20 25 25 25 25 25 Average Capacity 19 | 8 10 15 16 20 20 20 20 20 20 20 20 20 20 20 20 20 20 20 20 20 20 20 20 20 20 20 20 20 20 20 20 20 20 20 21 25 25 25 25 Most Carried 25 | 7 15 15 20 20 20 20 20 20 20 20 20 20 20 20 20 20 20 20 20 20 20 20 20 20 20 20 20 20 20 20 20 20 20 20 25 25 25 25 25 Average Carried 19 | 6 8 14 15 19 19 19 19 19 19 19 19 19 19 19 19 20 19 19 19 19 20 19 18 19 20 19 20 19 19 19 19 20 19 19 21 24 24 23 23 Final Capacity 25 | 8 15 15 20 20 20 20 20 20 20 20 20 20 20 20 20 20 20 20 20 20 20 20 20 20 20 20 20 20 20 20 20 20 20 20 25 25 25 25 25 Final Carried 25 | 6 15 15 20 20 20 20 20 20 20 20 20 20 20 20 20 20 19 20 20 20 20 20 20 20 20 20 20 20 20 20 20 20 20 20 25 25 25 25 19 Class Distribution -------------------- 42% | Scavenger-Tank 20% | Scavenger-Gunner 12% | Scavenger-Mutant 10% | Mutant 3% | Tank 3% | Gunner Dominant Class ---------------- Mutant | -10/Materials Mutant | -10/Mines Scavenger-Mutant | -9/Materials Scavenger-Mutant | -9/Storage Gunner | -8/Materials Scavenger-Gunner | -8/Garrison Scavenger-Tank | -8/Materials Scavenger-Tank | -8/Garrison Scavenger-Tank | -8/Materials Scavenger-Tank | -8/Garrison Scavenger-Tank | -8/Materials Scavenger-Tank | -8/Garrison Scavenger-Gunner | -7/Factory Scavenger-Gunner | -7/Lower Caves Scavenger-Gunner | -7/Lower Caves Scavenger-Gunner | -7/Data Miner Scavenger-Gunner | -6/Proximity Caves Scavenger-Gunner | -6/Factory Tank | -6/Extension Scavenger-Gunner | -6/Cetus Scavenger-Gunner | -6/Archives Scavenger-Gunner | -6/Hub_04(d) Scavenger-Tank | -5/Factory Scavenger-Tank | -5/Upper Caves Scavenger-Tank | -5/Upper Caves Scavenger-Tank | -5/Warlord Scavenger-Gunner | -4/Proximity Caves Scavenger-Tank | -4/Factory Scavenger-Tank | -4/Upper Caves Scavenger-Tank | -4/Upper Caves Scavenger-Tank | -4/Zhirov Scavenger-Tank | -3/Proximity Caves Scavenger-Tank | -3/Research Scavenger-Tank | -3/Testing Scavenger-Tank | -2/Research Scavenger-Tank | -2/Quarantine Scavenger-Tank | -2/Section 7 Hacker-Gunner | -1/Access Hacker-Gunner | -1/Command Resources | -11 -10 -10 -9 -9 -8 -8 -8 -8 -8 -8 -8 -8 -7 -7 -7 -7 -6 -6 -6 -6 -6 -6 -5 -5 -5 -5 -4 -4 -4 -4 -4 -3 -3 -3 -2 -2 -2 -1 -1 ----------- Run | Scr Mat Min Mat Sto Mat Gar Mat Gar Mat Gar Mat Gar Fac Low Low Dat Pro Fac Ext Cet Arc Hub Fac Upp Upp War Pro Fac Upp Upp Zhi Pro Res Tes Res Qua Sec Acc Com Matter Collected 17186 | 222 201 114 150 235 150 170 208 570 214 327 591 1086 517 387 270 . 217 312 529 204 145 1206 1205 203 35 443 141 744 272 187 . 230 405 1041 1206 828 915 644 662 Remotely . | . . . . . . . . . . . . . . . . . . . . . . . . . . . . . . . . . . . . . . . . Salvage Created 30945 | 91 485 278 978 1329 1034 1315 413 1018 653 1348 715 831 155 404 76 . 234 548 618 164 426 2999 1725 250 . 765 222 1460 522 499 . 338 580 1500 1359 1040 1966 1507 1100 Parts 1495 | 7 38 27 64 65 47 53 17 57 43 62 40 52 6 14 4 . 16 30 26 6 25 151 68 10 . 31 7 52 23 30 . 14 33 81 56 37 82 75 46 Haulers Intercepted 22 | . 1 . 2 5 1 . 1 . 1 . 2 . 1 . . . . 1 . . . 4 . . . . . 2 . . . . . . . . 1 . . Recyclers Shooed 6 | . 1 . 1 . . . . . . . . . . . . . . 1 1 . . . . . . . . 1 . . . . . . . . . . 1 Parts Field Recycled . | . . . . . . . . . . . . . . . . . . . . . . . . . . . . . . . . . . . . . . . . Retrieved Matter . | . . . . . . . . . . . . . . . . . . . . . . . . . . . . . . . . . . . . . . . . Parts Self-Destructed 142 | . . . . . . . . . . . . . . 8 9 . 29 . . . . . . 26 . . 9 . 21 27 . 13 . . . . . . . Prevented . | . . . . . . . . . . . . . . . . . . . . . . . . . . . . . . . . . . . . . . . . Kills | -11 -10 -10 -9 -9 -8 -8 -8 -8 -8 -8 -8 -8 -7 -7 -7 -7 -6 -6 -6 -6 -6 -6 -5 -5 -5 -5 -4 -4 -4 -4 -4 -3 -3 -3 -2 -2 -2 -1 -1 ------- Run | Scr Mat Min Mat Sto Mat Gar Mat Gar Mat Gar Mat Gar Fac Low Low Dat Pro Fac Ext Cet Arc Hub Fac Upp Upp War Pro Fac Upp Upp Zhi Pro Res Tes Res Qua Sec Acc Com Combat Hostiles Destroyed 524 | . 12 9 19 23 22 17 8 23 13 31 16 33 4 16 6 . 8 7 13 2 3 30 21 5 . 16 3 11 6 10 . 7 9 15 18 14 21 16 37 Melee 1 | . . . . . . . . . . . . 1 . . . . . . . . . . . . . . . . . . . . . . . . . . . Guns 343 | . 12 9 18 20 15 8 8 23 1 6 3 4 1 . 1 . 2 6 11 2 3 30 21 5 . 16 3 11 6 5 . 3 7 15 16 14 21 16 1 Cannons 107 | . . . . . 2 2 . . 8 24 11 25 3 8 5 . 4 1 2 . . . . . . . . . . . . . . . 1 . . . 11 AOE 65 | . . . 1 . 4 6 . . 4 . 1 3 . 8 . . 2 . . . . . . . . . . . . 5 . 4 2 . 1 . . . 24 Classes Destroyed 25 | 2 4 . 4 . . 1 1 1 . 1 1 . . . . . . . . . . 3 . . . 2 . 1 . . . . 1 . 1 1 . . 1 Worker 22 | . . . 2 . 1 . . . 2 . 1 . 1 . . . . 1 . . . 7 1 . . . . . . . . . 1 1 . 1 . . 3 Builder 7 | . . . . . . . . . . . 1 . . . . . . . . . . 3 . . . . . . . . . . . . . . . 3 . Tunneler 4 | 1 . 1 . . . . . . . . 1 . . . . . . . . . . . . . . . . . . . . . . . . . . 1 . Hauler 22 | . 1 . 2 5 1 . 1 . 1 . 2 . 1 . . . . 1 . . . 4 . . . . . 2 . . . . . . . . 1 . . Recycler 17 | 1 . . 3 . 1 . . . . . 1 . . . . . . 1 1 . . 1 2 . . . . 3 . . . . . 2 . . . 1 . Carrier 1 | . . . . . . . . . . . . . . . . . . . . . . 1 . . . . . . . . . . . . . . . . . Mechanic 5 | . . . . . . . . . . . . . . . . . . . . . . 1 . . . . . . . . . . . . . 1 1 . 2 Operator 11 | . . . 1 1 1 . . . . . . . . . . . . 1 . . 6 . . . . . . . . . . . 1 . . . . . . Drone 1 | . . . . . . . . . . . . . . . . . . . . . . . . . . . . 1 . . . . . . . . . . . Watcher 25 | . 3 . 2 1 2 . 1 . 1 . 2 . . . . . . 1 1 1 . 2 1 . . . . 2 . . . . 1 1 1 . . 2 . Swarmer 103 | . 6 5 7 3 7 3 2 6 3 6 2 8 . 4 2 . 4 2 7 . . . . 3 . 5 . . . 5 . 4 4 . 3 2 . . . Cutter 2 | . . . . . . . . . . . . . . . . . . . . . . . . . . . . . . . . . 2 . . . . . . Saboteur 3 | . . . . . . . . . . . . . . . . . . . . . . . . . . 3 . . . . . . . . . . . . . Grunt 191 | . 6 4 9 8 10 8 3 9 6 16 8 14 2 8 2 . 1 4 4 . . 11 9 . . 3 2 2 3 3 . . . . 6 5 11 4 10 Brawler 13 | . . . . . . . . . . 6 . . . 1 . . 1 . . . . . . 2 . 3 . . . . . . . . . . . . . Duelist 12 | . . . 1 1 1 . . 1 1 . . . 1 2 . . . . . . . 1 . . . . . 1 . . . . . . . . 1 1 . Protector 2 | . . . . . . . . . . . . . . . . . . . . . . 2 . . . . . . . . . . . . . . . . . Sentry 77 | . . . 2 11 4 3 2 5 3 2 3 7 . 1 . . . 1 2 . 3 5 5 . . . . 2 1 1 . 1 1 1 3 1 4 . 3 Demolisher 1 | . . . . . . . . . . . . . . . . . . . . . . . . . . . . . . . . . . . 1 . . . . Specialist 2 | . . . . . . . . 2 . . . . . . . . . . . . . . . . . . . . . . . . . . . . . . . Hunter 58 | . . . . . . . 1 . . 1 3 3 . . 2 . 2 . . . . 3 5 . . . . 2 2 . . 2 2 5 3 2 2 6 12 Programmer 44 | . . . . . . 3 . . . . . 1 1 . . . . . . . . 2 2 . . 1 1 4 . 1 . . . 9 1 3 2 5 8 Cetus Guard 2 | . . . . . . . . . . . . . . . . . . . . 2 . . . . . . . . . . . . . . . . . . . S7 Guard 1 | . . . . . . . . . . . . . . . . . . . . . . . . . . . . . . . . . . . . . 1 . . Enhanced Grunt 1 | . . . . . . . . . . . . . . . . . . . 1 . . . . . . . . . . . . . . . . . . . . Lightning 6 | . . . . . . . . . . . . . . . . . . . . . . 6 . . . . . . . . . . . . . . . . . Combat Programmer 2 | . . . . . . . . . . . . . . . . . . . . . . . . . . . . . . . . . . . . . . . 2 Striker 2 | . . . . . . . . . . . . . . . . . . . . . . . . . . 1 . . . . . . . . 1 . . . . Executioner 2 | . . . . . . . . . . . . . . . . . . . . . . . . . . . . . . . . . . . . . . . 2 Alpha 7 1 | . . . . . . . . . . . . . . . . . . . . . . . . . . . . . . . . . . . . 1 . . . Wasp 2 | . . . . . . . . . . . . . . . . . . 2 . . . . . . . . . . . . . . . . . . . . . Savage 1 | . . . . . . . . . . . . . . . . . . . . . . . 1 . . . . . . . . . . . . . . . . Best Kill Streak 16 | 2 4 3 11 5 8 6 5 4 6 7 6 9 5 9 2 . 4 3 5 2 8 7 4 3 . 10 2 4 3 6 . 4 5 4 4 10 6 7 16 Combat Bots Only 14 | . 4 3 3 5 7 6 5 4 5 7 4 9 4 9 2 . 4 3 4 2 3 4 4 3 . 10 2 3 3 6 . 4 4 3 4 9 6 6 14 Max Kills in Single Turn 7 | 1 2 1 2 1 4 5 2 2 2 2 2 3 1 3 1 . 2 2 2 1 1 4 2 2 . 2 1 2 1 5 . 2 2 2 2 1 2 2 7 Gunslinging 1 | . 1 . . . 1 1 . 1 . . . . . . . . . . 1 . . 1 1 1 . 1 . . . . . . . 1 . . . . . Exploded 6 | . . . 1 . 4 5 . . 2 . 1 3 . 3 . . 2 . . . . . . . . . . . . 5 . 2 1 . 1 . . . 6 Melee 1 | . . . . . . . . . . . . 1 . . . . . . . . . . . . . . . . . . . . . . . . . . . Uniques/NPCs Destroyed 2 | . . . . . . . . . . . . . . . . . . . . . . . . . . . . . . . . . . . . . . . 2 MAIN.C Shell (-1/Command) MAIN.C (-1/Command) Combat | -11 -10 -10 -9 -9 -8 -8 -8 -8 -8 -8 -8 -8 -7 -7 -7 -7 -6 -6 -6 -6 -6 -6 -5 -5 -5 -5 -4 -4 -4 -4 -4 -3 -3 -3 -2 -2 -2 -1 -1 -------- Run | Scr Mat Min Mat Sto Mat Gar Mat Gar Mat Gar Mat Gar Fac Low Low Dat Pro Fac Ext Cet Arc Hub Fac Upp Upp War Pro Fac Upp Upp Zhi Pro Res Tes Res Qua Sec Acc Com Damage Taken 22138 | . 277 235 220 918 623 448 125 869 377 573 365 1055 121 356 286 . 426 164 598 52 34 1392 1251 121 . 433 41 946 584 195 . 353 355 503 1458 1200 662 2159 2363 Core 1943 | . 68 52 32 120 50 37 5 45 10 43 61 120 25 . 38 . 39 3 60 14 . 78 41 . . 8 1 130 45 39 . 31 16 34 147 209 146 95 101 Absorbed by Shields 1160 | . . . . . . . . . . . . . . . . . . . 141 . . . . . . 49 . . . . . . 344 362 264 . . . . Redirected to Core 272 | . . . . . . . . . . . . . . . . . . . . . . . . . . . . . . . . . . . . 155 117 . . Regen/Repaired (Parts) 3728 | . . . . 246 . . . . 597 . 959 . . . . . . 428 . . . . 259 . . 178 . 222 . . . . . . . . . 182 657 Core Remaining (%) 75 | 100 . 52 . 62 . . . . . . . 32 . . . . 85 . . . . 81 . . . . 95 . . . . 78 . 96 . . 65 . 87 Volleys Fired 1357 | 3 44 21 48 80 45 69 18 46 29 61 43 73 17 19 15 . 15 19 34 6 14 82 64 16 1 28 9 53 19 12 . 14 27 52 58 59 49 44 51 Largest 3 | 2 2 2 2 2 3 3 3 3 3 3 2 2 2 2 2 . 2 3 3 3 3 3 3 3 3 3 3 3 3 3 . 3 3 3 3 3 3 3 3 Hottest 265 | 40 60 40 140 131 180 207 207 84 164 164 111 113 113 113 113 . 113 113 98 105 105 105 105 103 103 103 103 103 103 101 . 99 101 101 238 121 121 200 265 Shots Fired 3355 | 6 88 42 89 159 131 161 54 138 81 168 72 135 33 33 30 . 25 47 80 19 42 239 189 44 3 72 27 159 57 34 . 34 71 146 164 147 130 121 85 Gun 2860 | 6 88 42 88 159 114 104 54 138 26 53 41 72 16 13 15 . 13 41 68 19 42 235 189 44 3 72 27 159 57 33 . 30 59 145 161 147 130 118 39 Cannon 417 | . . . . . 16 15 . . 52 115 31 62 17 14 15 . 10 6 12 . . 4 . . . . . . . . . . . 1 3 . . 3 41 Launcher 38 | . . . 1 . 1 2 . . 3 . . 1 . 6 . . 2 . . . . . . . . . . . . 1 . 4 12 . . . . . 5 Special 40 | . . . . . . 40 . . . . . . . . . . . . . . . . . . . . . . . . . . . . . . . . . Kinetic 2483 | 6 63 42 . . . . 34 138 26 53 72 134 33 27 30 . 23 47 80 19 42 235 189 44 3 72 27 159 57 33 . 30 59 145 161 147 130 109 14 Thermal 789 | . . . 88 159 130 159 20 . 52 115 . . . . . . . . . . . . . . . . . . . . . . . . 3 . . 12 51 Explosive 37 | . . . 1 . 1 2 . . 3 . . 1 . 6 . . 2 . . . . . . . . . . . . 1 . 4 12 . . . . . 4 Electromagnetic 29 | . 25 . . . . . . . . . . . . . . . . . . . . 4 . . . . . . . . . . . . . . . . . Entropic 17 | . . . . . . . . . . . . . . . . . . . . . . . . . . . . . . . . . . 1 . . . . 16 Robot Hit Streak 67 | 6 24 12 16 23 16 67 11 28 15 21 11 14 29 30 35 . 10 19 20 21 48 24 18 18 . 14 14 50 22 9 . 15 20 22 19 25 25 18 17 Robot Miss Streak 7 | . 2 3 2 2 3 1 1 2 2 2 2 4 2 4 2 . 2 1 3 . 1 4 4 2 . 2 1 4 2 2 . 1 2 2 7 3 4 5 3 Penetration Max 2 | . . . . . . . 1 1 1 1 1 1 . . . . . . . . . 1 1 . . 1 . 1 . 1 . . 1 1 2 1 2 2 1 Secondary Targets 70 | . 2 . 1 3 6 2 2 8 . . . . . . . . . 1 4 1 . 7 5 2 . 4 . . 3 . . . 1 4 4 3 5 2 . Max Gunslinging Chain 2 | . 1 . 1 1 2 2 1 1 . . . . . . . . . 1 1 1 . 1 2 1 . 1 . . 1 . . . 1 1 1 1 1 1 . Shots Hit Robots 2410 | 6 67 28 66 128 94 128 41 96 55 111 52 95 28 30 21 . 17 36 51 18 30 168 129 34 . 50 22 114 38 25 . 26 48 102 119 95 98 81 63 Core Hits 1183 | 4 26 15 33 38 38 57 16 41 28 47 25 46 6 30 6 . 14 20 23 7 16 91 52 13 . 21 7 44 15 17 . 14 24 43 57 54 77 54 64 Critical Kills 92 | . . . . . . . . . . 2 1 . . . . . . . 2 1 4 21 12 1 . 7 2 5 3 1 . 1 1 4 2 6 9 7 . Critical Parts Destroyed 115 | . . . . . . . 2 2 1 . . 1 . . . . . . 1 . 6 15 16 3 . 4 3 14 4 1 . 1 1 15 3 6 7 9 . Critical Strikes 259 | . . . 7 10 6 7 2 3 1 2 2 5 . . 1 . . 1 4 2 10 36 31 4 . 13 5 19 7 2 . 2 2 19 5 12 18 16 5 Burn 29 | . . . 7 10 6 6 . . . . . . . . . . . . . . . . . . . . . . . . . . . . . . . . . Meltdown 1 | . . . . . . . . . . 1 . . . . . . . . . . . . . . . . . . . . . . . . . . . . . Destroy 216 | . . . . . . . 2 3 1 1 1 1 . . . . . . 3 2 10 36 31 4 . 13 5 19 7 2 . 2 2 19 5 12 18 16 1 Blast 8 | . . . . . . . . . . . 1 4 . . 1 . . 1 1 . . . . . . . . . . . . . . . . . . . . Sever 1 | . . . . . . 1 . . . . . . . . . . . . . . . . . . . . . . . . . . . . . . . . . Sunder 4 | . . . . . . . . . . . . . . . . . . . . . . . . . . . . . . . . . . . . . . . 4 Melee Attacks 9 | . . . . 5 . . . . . . . 2 . . . . . 1 . . . 1 . . . . . . . . . . . . . . . . . Impact . | . . . . . . . . . . . . . . . . . . . . . . . . . . . . . . . . . . . . . . . . Slashing 9 | . . . . 5 . . . . . . . 2 . . . . . 1 . . . 1 . . . . . . . . . . . . . . . . . Piercing . | . . . . . . . . . . . . . . . . . . . . . . . . . . . . . . . . . . . . . . . . Sneak Attacks . | . . . . . . . . . . . . . . . . . . . . . . . . . . . . . . . . . . . . . . . . Combat Hostiles . | . . . . . . . . . . . . . . . . . . . . . . . . . . . . . . . . . . . . . . . . Follow-up Attacks . | . . . . . . . . . . . . . . . . . . . . . . . . . . . . . . . . . . . . . . . . Damage Inflicted 86214 | 53 823 332 1362 2409 1892 2374 980 2166 1348 2209 2557 4838 1199 1789 960 . 965 1117 1350 469 805 5000 3711 867 . 1586 600 3565 1043 994 . 977 1651 3281 4058 2803 3225 3143 17713 Guns 52560 | 53 769 323 1307 2369 1506 1638 980 2166 305 562 692 957 306 271 183 . 188 762 1097 469 805 4420 3687 867 . 1586 600 3565 1043 762 . 574 1255 3267 3615 2803 3196 2651 961 Cannons 16069 | . . . . . 186 85 . . 773 1647 1750 3488 892 962 777 . 649 355 253 . . 128 . . . . . . . . . . . . 165 . . . 3959 Explosions 16678 | . 42 . 55 . 200 255 . . 270 . 115 207 . 556 . . 128 . . . . 452 . . . . . . . 232 . 403 287 . 278 . . 492 12706 Melee 150 | . . . . . . . . . . . . 150 . . . . . . . . . . . . . . . . . . . . . . . . . . . Ramming 361 | . 12 9 . 40 . . . . . . . 36 1 . . . . . . . . . 24 . . . . . . . . . 109 14 . . 29 . 87 Kinetic 53536 | 53 518 323 . . . . 706 2166 305 562 2442 4445 1198 1233 960 . 837 1117 1350 469 805 4420 3687 867 . 1586 600 3565 1043 762 . 574 1255 3267 3615 2803 3196 2500 307 Thermal 23029 | . 42 . 1307 2369 1692 2119 274 . 773 1647 115 . . . . . . . . . . . . . . . . . . . . . . . 443 . . 325 11923 Explosive 6540 | . . . 55 . 200 255 . . 270 . . 207 . 556 . . 128 . . . . . . . . . . . . 232 . 403 287 . . . . . 3947 Electromagnetic 1149 | . 251 . . . . . . . . . . . . . . . . . . . . 580 . . . . . . . . . . . . . . . 318 . Impact . | . . . . . . . . . . . . . . . . . . . . . . . . . . . . . . . . . . . . . . . . Slashing 150 | . . . . . . . . . . . . 150 . . . . . . . . . . . . . . . . . . . . . . . . . . . Piercing . | . . . . . . . . . . . . . . . . . . . . . . . . . . . . . . . . . . . . . . . . Entropic 1449 | . . . . . . . . . . . . . . . . . . . . . . . . . . . . . . . . . . . . . . . 1449 Highest Corruption 7 | . . . . . . . . . . 1 1 2 . . . . . 2 6 6 6 7 . . . . . . . . . . . 1 3 1 1 2 7 Average Corruption 2 | . . . . . . . . . . 1 1 1 . . . . . 1 3 6 4 5 . . . . . . . . . . . 1 2 1 1 1 4 Corruption Purged 9 | . . . . . . . . . . . . . . . . . . . . . 6 . . . . . . . . . . . . . 3 . . . . Corruption Blocked 44 | . . . . . . . . . . . . . . . . . . . . . . . . . . . . . . . . . . . 26 . . . 18 Effects 153 | . . . . . . . . . . 5 6 19 . . . . . 6 23 7 6 23 . . . . . . . . . . . 4 17 2 9 3 23 Message Errors 46 | . . . . . . . . . . 1 2 6 . . . . . 3 7 2 3 4 . . . . . . . . . . . 3 3 1 3 . 8 Matter Fused 34 | . . . . . . . . . . 1 1 7 . . . . . . 4 2 . 3 . . . . . . . . . . . . 10 . 2 1 3 Heat Flow Errors 10 | . . . . . . . . . . . . . . . . . . 1 2 . . 2 . . . . . . . . . . . . . 1 1 . 3 Energy Discharges 17 | . . . . . . . . . . 1 2 1 . . . . . 1 5 . . 3 . . . . . . . . . . . . 1 . . . 3 Parts Rejected 4 | . . . . . . . . . . . 1 . . . . . . . 1 . . 1 . . . . . . . . . . . . 1 . . . . Data Loss (minor) 21 | . . . . . . . . . . . . 1 . . . . . 1 1 2 2 5 . . . . . . . . . . . 1 1 . 2 1 4 Data Loss (major) 8 | . . . . . . . . . . 1 . 2 . . . . . . 2 . 1 . . . . . . . . . . . . . 1 . . . 1 Misfires 8 | . . . . . . . . . . 1 . 2 . . . . . . 1 1 . 2 . . . . . . . . . . . . . . . 1 . Alerts 1 | . . . . . . . . . . . . . . . . . . . . . . 1 . . . . . . . . . . . . . . . . . Weapon Failures 4 | . . . . . . . . . . . . . . . . . . . . . . 2 . . . . . . . . . . . . . . 1 . 1 Overload Shots . | . . . . . . . . . . . . . . . . . . . . . . . . . . . . . . . . . . . . . . . . Overflow Damage 3321 | . 2 . . . 66 . . . 19 21 197 555 307 28 83 . 72 28 . . . . . . . . . . . . . 53 82 5 . . 5 76 1722 Projectiles 1959 | . . . . . 44 . . . 19 21 119 500 307 28 83 . 72 28 . . . . . . . . . . . . . . . . . . . . 738 Explosions 1230 | . 2 . . . 22 . . . . . 78 . . . . . . . . . . . . . . . . . . . . 53 47 . . . . 76 952 Melee 132 | . . . . . . . . . . . . 55 . . . . . . . . . . . . . . . . . . . . 35 5 . . 5 . 32 Knockbacks 40 | . 1 1 . . . . . . . . 6 10 6 5 4 . 2 2 1 . . . . . . . . . . . . . . . . . 1 . 1 Impact 4 | . 1 1 . . . . . . . . . . . . . . . . . . . . . . . . . . . . . . . . . . 1 . 1 Kinetic 31 | . . . . . . . . . . . 5 10 5 4 3 . 2 1 1 . . . . . . . . . . . . . . . . . . . . Secondary 5 | . . . . . . . . . . . 1 . 1 1 1 . . 1 . . . . . . . . . . . . . . . . . . . . . Self-Inflicted Damage 336 | . 32 . . . . 39 . . 18 . . 7 . . . . . . . . . 150 . . . . . . . 23 . . 4 . 26 . . 24 13 Shots 12 | . 1 . . . . 2 . . 1 . . 1 . . . . . . . . . 2 . . . . . . . 1 . . 1 . 1 . . 1 1 Rammed 13 | . 3 . . 6 . . . . . . . 4 . . . . . . . . . . . . . . . . . . . . . . . . . . . Targets Rammed 25 | . 3 1 . 6 . . . . . . . 4 1 . . . . 1 . . . . 1 . . . . . . . . . 4 1 . . 1 . 2 Kicked 9 | . . . . . . . . . . . . . . . . . . . . . . . 1 . . . . . . . . . 4 1 . . 1 . 2 Crushed 3 | . . 1 . . . . . . . . . . 1 . . . . 1 . . . . . . . . . . . . . . . . . . . . . Highest Temperature 427 | . 24 . 153 165 286 81 344 24 322 427 6 74 2 182 170 . 244 252 266 161 218 338 263 . . 308 . 27 22 17 . . . . 228 142 128 145 353 Average Temperature 73 | . 16 . 53 44 68 21 90 11 86 121 3 10 2 53 78 . 94 51 46 67 69 119 66 . . 151 . 10 10 17 . . . . 59 100 64 59 119 Received Heat Transfer 5362 | . 114 111 87 405 414 180 27 414 225 297 153 540 54 153 57 . 72 63 84 9 . 231 240 27 . . 9 239 174 63 . 18 . 70 109 162 234 54 273 Effects 20 | . . . . . 1 . . . 1 6 . . . . . . 3 . . . . 1 3 . . . . . . . . . . . . . . . 5 Shutdowns 2 | . . . . . . . . . . 1 . . . . . . . . . . . . . . . . . . . . . . . . . . . . 1 Energy Bleed 3 | . . . . . 1 . . . 1 . . . . . . . . . . . . 1 . . . . . . . . . . . . . . . . . Interference 11 | . . . . . . . . . . 1 . . . . . . 3 . . . . . 3 . . . . . . . . . . . . . . . 4 Matter Decay 1 | . . . . . . . . . . 1 . . . . . . . . . . . . . . . . . . . . . . . . . . . . . Damage (minor) 1 | . . . . . . . . . . 1 . . . . . . . . . . . . . . . . . . . . . . . . . . . . . Damage (major) 2 | . . . . . . . . . . 2 . . . . . . . . . . . . . . . . . . . . . . . . . . . . . Siege Activations . | . . . . . . . . . . . . . . . . . . . . . . . . . . . . . . . . . . . . . . . . Robots Corrupted . | . . . . . . . . . . . . . . . . . . . . . . . . . . . . . . . . . . . . . . . . Combat Hostiles . | . . . . . . . . . . . . . . . . . . . . . . . . . . . . . . . . . . . . . . . . Parts Fried 8 | . 3 . . . . . . . . . . . . . . . . . . . . 3 . . . . . . . . . . . . . . . 2 . Impact Corruptions 7 | . . . . . . . . . . . 1 . . . 2 . . . . . . . . . . . . . . . . . 1 1 . . 1 . 1 Robots Melted 8 | . . . . 4 1 1 . . . 1 . . . . . . . . . . . . . . . . . . . . . . . . . . . . 1 Combat Hostiles 7 | . . . . 3 1 1 . . . 1 . . . . . . . . . . . . . . . . . . . . . . . . . . . . 1 Parts Melted 71 | . . . 6 19 12 16 . . 2 6 . . . . . . . . 1 . . . . . . 2 . . . . . . . . . . . 3 4 Heat Transferred 27194 | . 50 . 3108 5550 3996 4949 518 . 1369 2884 100 . . . . . . . . . . . . . . . . . . . . . . . 290 . . 425 3955 Parts Sabotaged . | . . . . . . . . . . . . . . . . . . . . . . . . . . . . . . . . . . . . . . . . Parts Stolen . | . . . . . . . . . . . . . . . . . . . . . . . . . . . . . . . . . . . . . . . . Parts Stripped . | . . . . . . . . . . . . . . . . . . . . . . . . . . . . . . . . . . . . . . . . Power Chain Reactions 3 | . 1 . . . . . . . . . . . . . . . . . . . . 2 . . . . . . . . . . . . . . . . . Missiles Intercepted . | . . . . . . . . . . . . . . . . . . . . . . . . . . . . . . . . . . . . . . . . Alert | -11 -10 -10 -9 -9 -8 -8 -8 -8 -8 -8 -8 -8 -7 -7 -7 -7 -6 -6 -6 -6 -6 -6 -5 -5 -5 -5 -4 -4 -4 -4 -4 -3 -3 -3 -2 -2 -2 -1 -1 ------- Run | Scr Mat Min Mat Sto Mat Gar Mat Gar Mat Gar Mat Gar Fac Low Low Dat Pro Fac Ext Cet Arc Hub Fac Upp Upp War Pro Fac Upp Upp Zhi Pro Res Tes Res Qua Sec Acc Com Peak Influence 2549 | 10 267 92 425 442 303 730 306 787 583 1192 613 1370 674 . . . . 240 448 191 229 619 477 . . . . 305 . . . . 273 405 278 449 511 589 2549 Initial 623 | . 5 7 1 153 1 167 306 40 330 313 500 179 623 . . . . 96 . 34 64 . 126 . . . . 52 . . . . 11 114 126 23 189 162 300 Average 308 | 9 86 48 185 145 186 446 107 445 499 794 287 962 595 . . . . 101 258 119 63 381 226 . . . . 122 . . . . 83 203 112 245 231 370 790 Maximum Alert Level 5 | . 1 . 2 2 1 3 1 3 2 4 2 4 2 . . . . 1 2 . 1 2 2 . . . . 1 . . . . 1 2 1 2 2 2 5 Low Security (%) 44 | 100 81 100 51 72 48 3 89 12 . . 18 3 . . . . . 85 17 100 77 7 39 . . . . 81 . . . . 86 56 89 38 35 9 18 Level 1 28 | . 18 . 33 19 51 45 10 38 18 3 67 14 . . . . . 14 52 . 22 46 46 . . . . 18 . . . . 13 41 10 56 55 43 25 Level 2 16 | . . . 15 8 . 35 . 23 81 41 14 6 100 . . . . . 29 . . 45 13 . . . . . . . . . . 1 . 4 8 47 18 Level 3 5 | . . . . . . 15 . 25 . 40 . 33 . . . . . . . . . . . . . . . . . . . . . . . . . . . Level 4 2 | . . . . . . . . . . 14 . 42 . . . . . . . . . . . . . . . . . . . . . . . . . . . Level 5 . | . . . . . . . . . . . . . . . . . . . . . . . . . . . . . . . . . . . . . . . 26 High Security . | . . . . . . . . . . . . . . . . . . . . . . . . . . . . . . . . . . . . . . . 11 Max Security . | . . . . . . . . . . . . . . . . . . . . . . . . . . . . . . . . . . . . . . . . Squads Dispatched 73 | . 3 . 3 4 1 . 2 . 3 . 1 . 2 . . . . 7 1 . . 9 2 . . . . 1 . . . . 3 5 . 9 3 5 9 Investigation 14 | . 3 . 2 2 . . . . . . . . . . . . . 3 . . . 2 . . . . . . . . . . . 1 . . . 1 . Extermination 15 | . . . . . . . . . . . . . 1 . . . . 1 . . . 2 1 . . . . 1 . . . . 1 2 . 2 1 1 2 Reinforcement 25 | . . . 1 2 1 . 1 . 1 . 1 . 1 . . . . 2 1 . . 4 1 . . . . . . . . . 2 . . 4 1 1 1 Assault 9 | . . . . . . . . . . . . . . . . . . . . . . 1 . . . . . . . . . . . . . . 1 1 6 Garrison 10 | . . . . . . . 1 . 2 . . . . . . . . 1 . . . . . . . . . . . . . . . 2 . 3 . 1 . Intercept . | . . . . . . . . . . . . . . . . . . . . . . . . . . . . . . . . . . . . . . . . Searches Triggered . | . . . . . . . . . . . . . . . . . . . . . . . . . . . . . . . . . . . . . . . . Data Miner Redirects 3 | . . . . . . . . . . . . . . . . . . 1 . . . 1 . . . . . . . . . . . . . . . . 1 Construction Impeded . | . . . . . . . . . . . . . . . . . . . . . . . . . . . . . . . . . . . . . . . . Haulers Reinforced 3 | . . . . . . . . . . . . . . . . . . . . . . 1 . . . . . . . . . . . . . 1 . 1 . Active Scanning Responses . | . . . . . . . . . . . . . . . . . . . . . . . . . . . . . . . . . . . . . . . . Cargo Convoy Interrupts 1 | . . . . . . . . . . . . . . . . . . . . . . . 1 . . . . . . . . . . . . . . . . Stealth | -11 -10 -10 -9 -9 -8 -8 -8 -8 -8 -8 -8 -8 -7 -7 -7 -7 -6 -6 -6 -6 -6 -6 -5 -5 -5 -5 -4 -4 -4 -4 -4 -3 -3 -3 -2 -2 -2 -1 -1 --------- Run | Scr Mat Min Mat Sto Mat Gar Mat Gar Mat Gar Mat Gar Fac Low Low Dat Pro Fac Ext Cet Arc Hub Fac Upp Upp War Pro Fac Upp Upp Zhi Pro Res Tes Res Qua Sec Acc Com Distress Signals 47 | . 2 . 1 1 2 . . . 1 . . . . . . . . . 3 1 . 4 2 . . . . . . . . . . 1 12 3 1 1 12 Communications Jammed 81 | . . . . . . . . . . . . . . . . . . . . . . . . . . . . 1 . . . . . . 1 4 65 10 . Distress Signals 78 | . . . . . . . . . . . . . . . . . . . . . . . . . . . . 1 . . . . . . 1 4 65 7 . Times Spotted 835 | . 19 10 33 36 29 17 11 27 18 29 23 44 9 18 9 . 15 25 32 10 5 49 34 10 . 38 4 17 6 9 . 7 15 27 52 22 33 18 75 Peak Tracking Total 17 | . 5 3 4 4 6 6 4 5 5 6 4 6 4 9 4 . 9 4 7 5 1 10 6 9 1 8 2 4 3 5 . 4 7 5 11 4 5 6 17 Tactical Retreats 32 | . 1 . 1 1 . . . 1 . 1 . 12 . 2 . . . . 3 . . 1 1 . 1 . 1 1 . . . . . . . 1 2 . 2 Traps | -11 -10 -10 -9 -9 -8 -8 -8 -8 -8 -8 -8 -8 -7 -7 -7 -7 -6 -6 -6 -6 -6 -6 -5 -5 -5 -5 -4 -4 -4 -4 -4 -3 -3 -3 -2 -2 -2 -1 -1 ------- Run | Scr Mat Min Mat Sto Mat Gar Mat Gar Mat Gar Mat Gar Fac Low Low Dat Pro Fac Ext Cet Arc Hub Fac Upp Upp War Pro Fac Upp Upp Zhi Pro Res Tes Res Qua Sec Acc Com Traps Triggered 26 | . 1 . . 2 . 1 . 2 . 1 . 1 . . . . . 4 1 . . 3 1 . . . . 1 . . . . 3 2 . 1 . . 2 Indirectly 1 | . . . . . . . . . . . . . . . . . . . . . . 1 . . . . . . . . . . . . . . . . . Trap Hack Attempts . | . . . . . . . . . . . . . . . . . . . . . . . . . . . . . . . . . . . . . . . . Triggered . | . . . . . . . . . . . . . . . . . . . . . . . . . . . . . . . . . . . . . . . . Disarmed . | . . . . . . . . . . . . . . . . . . . . . . . . . . . . . . . . . . . . . . . . Reprogrammed 6 | . . . 6 . . . . . . . . . . . . . . . . . . . . . . . . . . . . . . . . . . . . Reused . | . . . . . . . . . . . . . . . . . . . . . . . . . . . . . . . . . . . . . . . . Traps Extracted . | . . . . . . . . . . . . . . . . . . . . . . . . . . . . . . . . . . . . . . . . Installed . | . . . . . . . . . . . . . . . . . . . . . . . . . . . . . . . . . . . . . . . . Triggered 16 | . . . . . . . . . . . . . . . . . 2 . . . . . 1 . . 13 . . . . . . . . . . . . . Machines | -11 -10 -10 -9 -9 -8 -8 -8 -8 -8 -8 -8 -8 -7 -7 -7 -7 -6 -6 -6 -6 -6 -6 -5 -5 -5 -5 -4 -4 -4 -4 -4 -3 -3 -3 -2 -2 -2 -1 -1 ---------- Run | Scr Mat Min Mat Sto Mat Gar Mat Gar Mat Gar Mat Gar Fac Low Low Dat Pro Fac Ext Cet Arc Hub Fac Upp Upp War Pro Fac Upp Upp Zhi Pro Res Tes Res Qua Sec Acc Com Machines Disabled 102 | . . 1 3 3 3 . . 1 . . 7 . . 1 . . . 1 3 1 3 26 11 2 . 1 . 6 . . . . . 8 2 6 5 3 5 Max in Single Turn 7 | . . . 1 1 1 . . 1 . . 4 . . 1 . . . . 1 1 1 7 4 1 . 1 . 1 . . . . . 2 1 1 1 1 2 Garrison Access 8 | . . . . . . . . . . . . . . . . . . 1 . . . 1 1 . . . . 1 . . . . . . 2 . 1 1 . Garrison Relay 1 | . . . . . . . . 1 . . . . . . . . . . . . . . . . . . . . . . . . . . . . . . . Network Hub 2 | . . . . . . . . . . . . . . . . . . . . . . 2 . . . . . . . . . . . . . . . . . Energy Cycler 1 | . . . . . . . . . . . . . . . . . . . 1 . . . . . . . . . . . . . . . . . . . . Machines Sabotaged . | . . . . . . . . . . . . . . . . . . . . . . . . . . . . . . . . . . . . . . . . Garrisons Compromised 1 | . . . . . . . . . . . . . . . . . . . . . . . 1 . . . . . . . . . . . . . . . . Overloaded Fab Kills . | . . . . . . . . . . . . . . . . . . . . . . . . . . . . . . . . . . . . . . . . Hacking | -11 -10 -10 -9 -9 -8 -8 -8 -8 -8 -8 -8 -8 -7 -7 -7 -7 -6 -6 -6 -6 -6 -6 -5 -5 -5 -5 -4 -4 -4 -4 -4 -3 -3 -3 -2 -2 -2 -1 -1 --------- Run | Scr Mat Min Mat Sto Mat Gar Mat Gar Mat Gar Mat Gar Fac Low Low Dat Pro Fac Ext Cet Arc Hub Fac Upp Upp War Pro Fac Upp Upp Zhi Pro Res Tes Res Qua Sec Acc Com Machines Accessed 128 | . 11 1 8 12 4 1 3 2 2 3 10 3 4 . . 3 . 6 4 . . 8 5 . 1 3 . 5 . 1 4 . 5 4 2 3 4 2 4 Terminals 81 | . 8 1 6 9 3 1 2 2 . 3 7 3 3 . . . . 2 4 . . 7 2 . . . . 2 . 1 . . 5 2 . 2 1 1 4 Fabricators 6 | . . . . . . . . . . . . . . . . . . 3 . . . . 1 . . . . 1 . . . . . 1 . . . . . Repair Stations 8 | . 1 . . 1 . . . . 1 . 2 . . . . . . . . . . . 1 . . . . 1 . . . . . . . 1 . . . Recycling Units 5 | . 2 . 1 2 . . . . . . . . . . . . . . . . . . . . . . . . . . . . . . . . . . . Scanalyzers 4 | . . . 1 . . . . . . . . . 1 . . . . . . . . . . . . . . . . . . . . . . . 2 . . Garrison Access 13 | . . . . . 1 . 1 . 1 . 1 . . . . . . 1 . . . 1 1 . . . . 1 . . . . . 1 2 . 1 1 . Total Hacks 434 | . 32 3 37 36 14 2 10 2 8 6 23 5 10 . . 21 . 15 10 . . 20 23 . 1 9 . 24 . 1 17 . 28 12 5 10 25 4 21 Successful 263 | . 18 3 26 23 7 1 7 1 6 2 16 4 5 . . 21 . 7 3 . . 8 11 . 1 9 . 14 . 1 17 . 13 3 2 4 15 3 12 Failed 170 | . 13 . 11 13 7 1 3 1 2 4 7 1 5 . . . . 8 7 . . 12 12 . . . . 10 . . . . 15 9 3 6 10 1 9 Catastrophic 27 | . . . 2 2 2 . . . . . 2 . . . . . . 3 1 . . 3 2 . . . . 3 . . . . 2 2 . 1 1 . 1 Database Lockouts 1 | . 1 . . . . . . . . . . . . . . . . . . . . . . . . . . . . . . . . . . . . . . Manual 178 | . 19 3 19 17 9 . 5 . . . 11 2 2 . . . . 3 4 . . 12 8 . . 1 . 15 . . . . 18 3 . 4 6 4 13 Terminals 278 | . 27 3 24 26 13 2 8 2 . 6 15 5 9 . . . . 4 10 . . 18 13 . . . . 15 . 1 . . 28 8 . 7 11 2 21 Fabricators 19 | . . . . . . . . . . . . . . . . . . 9 . . . . 4 . . . . 4 . . . . . 2 . . . . . Repair Stations 29 | . 1 . . 6 . . . . 5 . 6 . . . . . . . . . . . 4 . . . . 4 . . . . . . . 3 . . . Recycling Units 10 | . 4 . 2 4 . . . . . . . . . . . . . . . . . . . . . . . . . . . . . . . . . . . Scanalyzers 25 | . . . 11 . . . . . . . . . 1 . . . . . . . . . . . . . . . . . . . . . . . 13 . . Garrison Access 25 | . . . . . 1 . 2 . 3 . 2 . . . . . . 2 . . . 2 2 . . . . 1 . . . . . 2 5 . 1 2 . Terminal Hacks 169 | . 13 3 11 13 4 1 5 1 . 2 7 3 4 . . 21 . . 3 . . 7 5 . 1 9 . 8 . 1 17 . 10 1 . 3 6 1 9 Record 16 | . . . . . . . . . . . . . . . . 2 . . . . . . . . . 8 . . . 1 5 . . . . . . . . Part Schematic 28 | . 5 1 1 2 . . . . . . . . . . . 10 . . . . . . . . . . . 3 . . 4 . 1 . . . 1 . . Robot Schematic 7 | . . . . 1 . . . . . . . . . . . 6 . . . . . . . . . . . . . . . . . . . . . . . Robot Analysis 13 | . . 2 1 . 2 . 1 . . . . . . . . . . . 1 . . . . . . . . . . . 4 . 1 . . . . . 1 Prototype ID Bank 13 | . 1 . 1 1 . . . . . . 1 . . . . 3 . . . . . 1 . . . . . . . . 4 . . . . . . . 1 Open Door 7 | . . . . 3 . . . . . . . 1 . . . . . . . . . . . . 1 1 . . . . . . . . . 1 . . . Level Access Points 6 | . . . . . . . . . . . . . 1 . . . . . . . . 1 . . . . . . . . . . 1 1 . . 1 . 1 Branch Access Points 6 | . 1 . 1 . . . . . . . . . 1 . . . . . . . . . 1 . . . . 1 . . . . 1 . . . . . . Emergency Access Points 5 | . . . . . . 1 . 1 . 1 . 1 . . . . . . . . . . . . . . . . . . . . 1 . . . . . . Machine Index 5 | . 1 . 1 . . . 1 . . . . . . . . . . . . . . . . . . . . . . . . . 1 . . . . . 1 Terminal Index 7 | . . . . . 1 . . . . . 1 . . . . . . . . . . 1 1 . . . . 1 . . . . 1 . . . . 1 . Fabricator Index 1 | . . . . . . . . . . . . . . . . . . . . . . . . . . . . 1 . . . . . . . . . . . Repair Station Index 2 | . . . . . . . . . . . 1 . . . . . . . . . . . . . . . . . . . . . . . . . 1 . . Recycling Unit Index 1 | . 1 . . . . . . . . . . . . . . . . . . . . . . . . . . . . . . . . . . . . . . Scanalyzer Index 1 | . . . 1 . . . . . . . . . . . . . . . . . . . . . . . . . . . . . . . . . . . . Alert Level 1 | . . . . . . . . . . . . . 1 . . . . . . . . . . . . . . . . . . . . . . . . . . Unreport Threat 29 | . 1 . 2 2 1 . 2 . . . 3 . . . . . . . 1 . . 3 3 . . . . 2 . . . . 1 . . 2 3 . 3 Locate Traps 6 | . 2 . 1 1 . . . . . . . . . . . . . . 1 . . . . . . . . . . . . . . . . . . . 1 Reprogram Traps 1 | . . . 1 . . . . . . . . . . . . . . . . . . . . . . . . . . . . . . . . . . . . Recall Investigation 1 | . . . . 1 . . . . . . . . . . . . . . . . . . . . . . . . . . . . . . . . . . . Recall Reinforcements 1 | . . . . 1 . . . . . . . . . . . . . . . . . . . . . . . . . . . . . . . . . . . Hauler Manifests 3 | . 1 . 1 . . . 1 . . . . . . . . . . . . . . . . . . . . . . . . . . . . . . . . Registered Components 1 | . . . . 1 . . . . . . . . . . . . . . . . . . . . . . . . . . . . . . . . . . . Zone Layout 5 | . . . . . . . . . . . 1 . 1 . . . . . . . . 1 . . . . . . . . . . 2 . . . . . . Garrison Registry 1 | . . . . . . . . . . 1 . . . . . . . . . . . . . . . . . . . . . . . . . . . . . Patrol Navigation 1 | . . . . . . . . . . . . 1 . . . . . . . . . . . . . . . . . . . . . . . . . . . Disengage Seal 1 | . . . . . . . . . . . . . . . . . . . . . . . . . . . . . . . . . . . . . . . 1 Fabricator Hacks 10 | . . . . . . . . . . . . . . . . . . 5 . . . . 3 . . . . 1 . . . . . 1 . . . . . Network Status 1 | . . . . . . . . . . . . . . . . . . . . . . . 1 . . . . . . . . . . . . . . . . Load Schematic 6 | . . . . . . . . . . . . . . . . . . 3 . . . . 1 . . . . 1 . . . . . 1 . . . . . Build 3 | . . . . . . . . . . . . . . . . . . 2 . . . . 1 . . . . . . . . . . . . . . . . Repair Station Hacks 22 | . . . . 6 . . . . 5 . 6 . . . . . . . . . . . 1 . . . . 3 . . . . . . . 1 . . . Scan Component 13 | . . . . 3 . . . . 3 . 3 . . . . . . . . . . . 1 . . . . 2 . . . . . . . 1 . . . Repair 9 | . . . . 3 . . . . 2 . 3 . . . . . . . . . . . . . . . . 1 . . . . . . . . . . . Recycling Unit Hacks 3 | . 1 . 1 1 . . . . . . . . . . . . . . . . . . . . . . . . . . . . . . . . . . . Retrieve Components 3 | . 1 . 1 1 . . . . . . . . . . . . . . . . . . . . . . . . . . . . . . . . . . . Scanalyzer 18 | . . . 10 . . . . . . . . . . . . . . . . . . . . . . . . . . . . . . . . . 8 . . Insert Component 12 | . . . 4 . . . . . . . . . . . . . . . . . . . . . . . . . . . . . . . . . 8 . . Analyze 6 | . . . 6 . . . . . . . . . . . . . . . . . . . . . . . . . . . . . . . . . . . . Garrison Access Hacks 10 | . . . . . 1 . 1 . 1 . 1 . . . . . . 1 . . . . 1 . . . . 1 . . . . . . 2 . 1 . . Unlock Access 4 | . . . . . 1 . 1 . 1 . 1 . . . . . . . . . . . . . . . . . . . . . . . . . . . . Seal Access 6 | . . . . . . . . . . . . . . . . . . 1 . . . . 1 . . . . 1 . . . . . . 2 . 1 . . Unauthorized Hacks 31 | . 4 . 4 3 2 . 1 . . . 2 1 1 . . . . 1 . . . 1 1 . . . . 1 . . . . 3 1 . . . 2 3 Terminals 22 | . 2 . 2 1 2 . 1 . . . 2 1 1 . . . . 1 . . . 1 1 . . . . 1 . . . . 3 . . . . . 3 Assimilate 1 | . . . 1 . . . . . . . . . . . . . . . . . . . . . . . . . . . . . . . . . . . . Botnet 18 | . . . 1 1 1 . 1 . . . 2 1 1 . . . . 1 . . . 1 1 . . . . 1 . . . . 3 . . . . . 3 Disrupt 2 | . 1 . . . 1 . . . . . . . . . . . . . . . . . . . . . . . . . . . . . . . . . . Operators 1 | . 1 . . . . . . . . . . . . . . . . . . . . . . . . . . . . . . . . . . . . . . Fabricators 1 | . . . . . . . . . . . . . . . . . . . . . . . . . . . . . . . . . . 1 . . . . . Recompile 1 | . . . . . . . . . . . . . . . . . . . . . . . . . . . . . . . . . . 1 . . . . . Repair Stations . | . . . . . . . . . . . . . . . . . . . . . . . . . . . . . . . . . . . . . . . . Recycling Units 5 | . 2 . 1 2 . . . . . . . . . . . . . . . . . . . . . . . . . . . . . . . . . . . Tunnel 5 | . 2 . 1 2 . . . . . . . . . . . . . . . . . . . . . . . . . . . . . . . . . . . Scanalyzers 1 | . . . 1 . . . . . . . . . . . . . . . . . . . . . . . . . . . . . . . . . . . . Extract 1 | . . . 1 . . . . . . . . . . . . . . . . . . . . . . . . . . . . . . . . . . . . Garrison Access 2 | . . . . . . . . . . . . . . . . . . . . . . . . . . . . . . . . . . . . . . 2 . Reprogram 1 | . . . . . . . . . . . . . . . . . . . . . . . . . . . . . . . . . . . . . . 1 . Intercept 1 | . . . . . . . . . . . . . . . . . . . . . . . . . . . . . . . . . . . . . . 1 . Data Cores Recovered 2 | . . . . . . . . . . . . . . . . . . 1 . . . . . . . . . . . . . . 1 . . . . . . Used 2 | . . . . . . . . . . . . . . . . . . 1 . . . . . . . . . . . . . . 1 . . . . . . Hacking Detections 99 | . 9 1 8 8 3 1 3 2 2 2 9 3 4 . . . . 6 4 . . 7 5 . . . . 3 . . . . 5 4 1 2 2 2 3 Full Trace Events 7 | . . . 1 1 . . . . . 1 . . . . . . . 3 . . . 1 . . . . . . . . . . . . . . . . . Feedback Events 1 | . . . . . . . . . . 1 . . . . . . . . . . . . . . . . . . . . . . . . . . . . . Corruption 1 | . . . . . . . . . . 1 . . . . . . . . . . . . . . . . . . . . . . . . . . . . . Feedback Blocked . | . . . . . . . . . . . . . . . . . . . . . . . . . . . . . . . . . . . . . . . . Robot Schematics Acquired 7 | . . . . 1 . . . . . . . . . . . 6 . . . . . . . . . . . . . . . . . . . . . . . Robots Built . | . . . . . . . . . . . . . . . . . . . . . . . . . . . . . . . . . . . . . . . . Authchips . | . . . . . . . . . . . . . . . . . . . . . . . . . . . . . . . . . . . . . . . . Time . | . . . . . . . . . . . . . . . . . . . . . . . . . . . . . . . . . . . . . . . . Total Robot Build Rating . | . . . . . . . . . . . . . . . . . . . . . . . . . . . . . . . . . . . . . . . . Part Schematics Acquired 36 | . 5 1 9 2 . . . . . . . . . . . 10 . . . . . . . . . . . 3 . . 4 . 1 . . . 1 . . Parts Built 3 | . . . . . . . . . . . . . . . . . . 2 . . . . 1 . . . . . . . . . . . . . . . . Authchips 1 | . . . . . . . . . . . . . . . . . . . . . . . 1 . . . . . . . . . . . . . . . . Time 337 | . . . . . . . . . . . . . . . . . . 253 . . . . 84 . . . . . . . . . . . . . . . . Total Part Build Rating 18 | . . . . . . . . . . . . . . . . . . 12 . . . . 6 . . . . . . . . . . . . . . . . Parts Repaired 9 | . . . . 3 . . . . 2 . 3 . . . . . . . . . . . . . . . . 1 . . . . . . . . . . . Time 438 | . . . . 84 . . . . 100 . 186 . . . . . . . . . . . . . . . . 68 . . . . . . . . . . . Parts Recycled . | . . . . . . . . . . . . . . . . . . . . . . . . . . . . . . . . . . . . . . . . Recycled Matter . | . . . . . . . . . . . . . . . . . . . . . . . . . . . . . . . . . . . . . . . . Retrieved Matter . | . . . . . . . . . . . . . . . . . . . . . . . . . . . . . . . . . . . . . . . . Retrieved Components 20 | . 9 . 10 1 . . . . . . . . . . . . . . . . . . . . . . . . . . . . . . . . . . . Parts Scanalyzed 4 | . . . 4 . . . . . . . . . . . . . . . . . . . . . . . . . . . . . . . . . . . . Part Schematics Acquired 4 | . . . 4 . . . . . . . . . . . . . . . . . . . . . . . . . . . . . . . . . . . . Parts Damaged . | . . . . . . . . . . . . . . . . . . . . . . . . . . . . . . . . . . . . . . . . Bothacking | -11 -10 -10 -9 -9 -8 -8 -8 -8 -8 -8 -8 -8 -7 -7 -7 -7 -6 -6 -6 -6 -6 -6 -5 -5 -5 -5 -4 -4 -4 -4 -4 -3 -3 -3 -2 -2 -2 -1 -1 ------------ Run | Scr Mat Min Mat Sto Mat Gar Mat Gar Mat Gar Mat Gar Fac Low Low Dat Pro Fac Ext Cet Arc Hub Fac Upp Upp War Pro Fac Upp Upp Zhi Pro Res Tes Res Qua Sec Acc Com Used RIF Installer . | . . . . . . . . . . . . . . . . . . . . . . . . . . . . . . . . . . . . . . . . Robots Hacked . | . . . . . . . . . . . . . . . . . . . . . . . . . . . . . . . . . . . . . . . . Non-combat . | . . . . . . . . . . . . . . . . . . . . . . . . . . . . . . . . . . . . . . . . Combat . | . . . . . . . . . . . . . . . . . . . . . . . . . . . . . . . . . . . . . . . . Robot Hacks Applied . | . . . . . . . . . . . . . . . . . . . . . . . . . . . . . . . . . . . . . . . . Relay Couplers Released 13 | . . . . . . . . 4 . . . 4 . . . . . . . . . 3 . . . . . . . . . . . . 1 . . 1 . Machine Destruction 9 | . . . . . . . . 4 . . . . . . . . . . . . . 3 . . . . . . . . . . . . 1 . . 1 . Programmers 4 | . . . . . . . . . . . . 4 . . . . . . . . . . . . . . . . . . . . . . . . . . . Fabnet Peak Effective % . | . . . . . . . . . . . . . . . . . . . . . . . . . . . . . . . . . . . . . . . . Robots Rewired 28 | . . . . . . . . . . . . 3 . 2 . . 2 1 11 . . . . 5 . 4 . . . . . . . . . . . . . Allies Hacked 1 | . . . . . . . . . . . . . 1 . . . . . . . . . . . . . . . . . . . . . . . . . . Hacks Repelled . | . . . . . . . . . . . . . . . . . . . . . . . . . . . . . . . . . . . . . . . . Allies | -11 -10 -10 -9 -9 -8 -8 -8 -8 -8 -8 -8 -8 -7 -7 -7 -7 -6 -6 -6 -6 -6 -6 -5 -5 -5 -5 -4 -4 -4 -4 -4 -3 -3 -3 -2 -2 -2 -1 -1 -------- Run | Scr Mat Min Mat Sto Mat Gar Mat Gar Mat Gar Mat Gar Fac Low Low Dat Pro Fac Ext Cet Arc Hub Fac Upp Upp War Pro Fac Upp Upp Zhi Pro Res Tes Res Qua Sec Acc Com Total Allies 41 | . . 2 1 . . . . . . . . 4 . 2 . . 3 1 15 . . . . 5 . 4 . . . . . . 3 . . . . 1 . Largest Group 6 | . . 2 1 1 . . . . . . . 4 4 2 2 . 3 4 6 4 1 1 . 4 4 6 . . . . . . 3 . . . . 1 . Highest-Rated Group 261 | . . 45 14 10 . . . . . . . 79 79 62 62 . 154 183 237 115 34 34 . 97 97 261 . . . . . . 138 . . . . 64 . Highest-Rated Ally 96 | . . 31 14 10 . . . . . . . 25 25 32 32 . 96 96 96 39 34 34 . 30 30 65 . . . . . . 46 . . . . 64 . Warlord Squad Rendezvous 7 | . . . . . . . . . . . . . . . . . . 4 . . . . 3 . . . . . . . . . . . . . . . . Dakka 2 | . . . . . . . . . . . . . . . . . . 2 . . . . . . . . . . . . . . . . . . . . . Infantry 1 | . . . . . . . . . . . . . . . . . . 1 . . . . . . . . . . . . . . . . . . . . . Muscle 2 | . . . . . . . . . . . . . . . . . . . . . . . 2 . . . . . . . . . . . . . . . . Pyro 1 | . . . . . . . . . . . . . . . . . . 1 . . . . . . . . . . . . . . . . . . . . . Ghost 1 | . . . . . . . . . . . . . . . . . . . . . . . 1 . . . . . . . . . . . . . . . . Total Orders 24 | . . . . . . . . . . . . . . . . . . . . 3 2 4 . 4 2 4 . . . . . . . . . . . . 5 STAY 3 | . . . . . . . . . . . . . . . . . . . . . . . . . . 3 . . . . . . . . . . . . . FOLLOW 1 | . . . . . . . . . . . . . . . . . . . . . . . . . . 1 . . . . . . . . . . . . . EXPLORE 2 | . . . . . . . . . . . . . . . . . . . . . . . . 1 1 . . . . . . . . . . . . . . RETURN 18 | . . . . . . . . . . . . . . . . . . . . 3 2 4 . 3 1 . . . . . . . . . . . . . 5 Ally Attacks 387 | . . 15 . . . . . . . . . 9 8 . 20 . 16 45 34 79 14 38 . 32 4 17 . 14 . . . . 9 . . . . 5 28 Total Damage 12739 | . . 240 . . . . . . . . . 148 165 . 645 . 697 915 1721 1642 248 581 . 573 178 673 . 106 . . . . 275 . . . . 219 3713 Kills 65 | . . 1 . . . . . . . . . 2 . . 5 . 6 7 11 9 1 8 . 6 . 5 . . . . . . . . . . . . 4 Allies Corrupted 2 | . . . . . . . . . . . . . . . . . . . 1 . . . . . . . . . . . . . . . . . . . 1 Allies Melted 5 | . . . . . . . . . . . . . . . 1 . . . 1 . . . . . . . . . . . . . . . 3 . . . . Intel | -11 -10 -10 -9 -9 -8 -8 -8 -8 -8 -8 -8 -8 -7 -7 -7 -7 -6 -6 -6 -6 -6 -6 -5 -5 -5 -5 -4 -4 -4 -4 -4 -3 -3 -3 -2 -2 -2 -1 -1 ------- Run | Scr Mat Min Mat Sto Mat Gar Mat Gar Mat Gar Mat Gar Fac Low Low Dat Pro Fac Ext Cet Arc Hub Fac Upp Upp War Pro Fac Upp Upp Zhi Pro Res Tes Res Qua Sec Acc Com Robot Analysis Total 13 | . . 2 1 . 2 . 1 . . . . . . . . . . . 1 . . . . . . . . . . . 4 . 1 . . . . . 1 Derelict Logs Recovered 10 | . . 1 . . . . . . . . . . . . 1 . 2 . . . . . . 2 2 . . . 1 1 . . . . . . . . . Drone Launches 36 | . . . . . . . . . . . . . . . . . . . . 9 2 9 . 6 2 . . 2 . . . . . . . . . . 6 Drone Recoveries 29 | . . . . . . . . . . . . . . . . . . . . 5 5 6 . 6 2 . . . . . . . . . . . . . 5 Exploration | -11 -10 -10 -9 -9 -8 -8 -8 -8 -8 -8 -8 -8 -7 -7 -7 -7 -6 -6 -6 -6 -6 -6 -5 -5 -5 -5 -4 -4 -4 -4 -4 -3 -3 -3 -2 -2 -2 -1 -1 ------------- Run | Scr Mat Min Mat Sto Mat Gar Mat Gar Mat Gar Mat Gar Fac Low Low Dat Pro Fac Ext Cet Arc Hub Fac Upp Upp War Pro Fac Upp Upp Zhi Pro Res Tes Res Qua Sec Acc Com Turns Passed 36876 | 35 1438 1318 793 2127 664 1415 423 1623 532 1397 1191 1672 643 677 596 119 694 1246 1151 336 1541 2235 1251 514 248 1382 327 887 424 314 165 492 653 897 2235 761 817 495 1148 Spaces Moved 20634 | 21 743 774 375 735 271 696 198 721 191 698 519 858 348 367 338 75 397 639 570 173 71 1226 842 353 222 937 288 552 357 260 153 447 519 668 1989 496 544 282 721 Core . | . . . . . . . . . . . . . . . . . . . . . . . . . . . . . . . . . . . . . . . . Treads 10648 | . 716 774 375 735 271 696 198 721 191 698 519 858 348 367 338 75 397 639 570 173 71 918 . . . . . . . . . . . . . . . . . Legs 9986 | 21 27 . . . . . . . . . . . . . . . . . . . . 308 842 353 222 937 288 552 357 260 153 447 519 668 1989 496 544 282 721 Wheels . | . . . . . . . . . . . . . . . . . . . . . . . . . . . . . . . . . . . . . . . . Hover . | . . . . . . . . . . . . . . . . . . . . . . . . . . . . . . . . . . . . . . . . Flight . | . . . . . . . . . . . . . . . . . . . . . . . . . . . . . . . . . . . . . . . . Fastest Speed 96 | 120 120 160 160 160 160 160 160 160 160 160 160 160 160 160 160 160 160 160 160 160 160 100 100 100 100 100 100 100 100 100 100 100 98 98 96 100 113 114 115 Average Speed 135 | 120 158 160 160 236 166 163 160 160 160 160 160 160 160 160 160 160 160 160 160 160 160 149 100 100 100 100 100 100 100 100 100 100 98 99 98 111 114 114 128 Slowest Speed 310 | 120 160 160 160 240 170 170 160 160 160 160 160 160 160 160 160 160 160 160 160 160 160 310 100 100 100 170 100 170 100 100 100 100 98 176 103 113 116 116 188 Overloaded Moves . | . . . . . . . . . . . . . . . . . . . . . . . . . . . . . . . . . . . . . . . . Propulsion Burnouts . | . . . . . . . . . . . . . . . . . . . . . . . . . . . . . . . . . . . . . . . . Robots Hopped . | . . . . . . . . . . . . . . . . . . . . . . . . . . . . . . . . . . . . . . . . Cave-ins Triggered 3 | . . . . . . . . . . . . . . . . . . . 1 . . . . . . . . 1 . . . . . . 1 . . . . Exploration Rate (%) 54 | 3 97 99 36 95 36 64 20 66 19 72 67 80 17 52 51 68 61 20 62 58 78 82 27 74 59 87 54 19 62 57 62 69 14 61 69 77 26 9 41 Regions Visited 39 Branch Regions 22 Pre-discovered Areas 12 | . 2 1 1 2 . . . . . . . . . 1 . 1 . . . . . . . . 1 . . . . . 3 . . . . . . . . Known Exits Taken 18 | . 1 . 1 . 1 . 1 . 1 . 1 . 1 . . . 1 1 . . . 1 1 1 1 . . 1 1 . . . 1 1 . . 1 . . Unknown Exits Taken 17 | 1 . 1 . 1 . . . . . . . . . 1 1 1 . . 1 1 1 . . . . 1 1 . . 1 1 1 . . 1 1 . 1 . Scrap Searched 24 | . . 1 . . . . . . . . . . . 1 8 . . . . . . . . 3 3 . 1 . 3 3 . 1 . . . . . . . Spaces Dug 106 | . . . . . . . . . . . . . 1 . . . . 2 13 . . 4 10 . 3 . 2 16 . . . . 18 . . . . 3 34 Terrain Destroyed 1966 | . 3 . . . 4 1 . 1 19 4 16 18 5 12 7 . 11 2 15 1 9 358 62 19 3 2 8 49 32 35 . 33 44 12 34 30 13 42 1062 Melee 1 | . . . . . . . . . . . . . . . . . . 1 . . . . . . . . . . . . . . . . . . . . . Projectile 443 | . . . . . . . . 1 3 4 6 18 5 1 7 . 4 1 15 1 9 57 44 19 3 2 8 49 32 26 . 18 6 11 28 30 13 11 11 AOE 1520 | . 3 . . . 4 1 . . 16 . 10 . . 11 . . 7 . . . . 301 18 . . . . . . 9 . 15 38 . 5 . . 31 1051 Terrain Rammed . | . . . . . . . . . . . . . . . . . . . . . . . . . . . . . . . . . . . . . . . . Walls Destroyed . | . . . . . . . . . . . . . . . . . . . . . . . . . . . . . . . . . . . . . . . . Machines Disabled . | . . . . . . . . . . . . . . . . . . . . . . . . . . . . . . . . . . . . . . . . Actions | -11 -10 -10 -9 -9 -8 -8 -8 -8 -8 -8 -8 -8 -7 -7 -7 -7 -6 -6 -6 -6 -6 -6 -5 -5 -5 -5 -4 -4 -4 -4 -4 -3 -3 -3 -2 -2 -2 -1 -1 --------- Run | Scr Mat Min Mat Sto Mat Gar Mat Gar Mat Gar Mat Gar Fac Low Low Dat Pro Fac Ext Cet Arc Hub Fac Upp Upp War Pro Fac Upp Upp Zhi Pro Res Tes Res Qua Sec Acc Com Total 26663 | 25 921 817 480 959 390 816 266 1090 354 857 794 990 393 417 357 74 427 831 751 224 1467 1447 1104 480 245 1331 304 765 381 286 164 464 605 790 2144 592 643 361 857 Wait 3397 | . 96 12 20 79 31 2 22 318 122 76 209 20 8 15 . . . 109 75 4 1375 66 144 75 19 269 4 134 . 6 . 2 22 13 11 4 12 8 15 Move 20588 | 20 742 773 374 734 271 694 198 718 190 696 519 855 347 366 337 74 396 638 568 172 70 1225 841 352 221 936 287 550 356 259 152 446 518 667 1987 495 543 281 720 Hop . | . . . . . . . . . . . . . . . . . . . . . . . . . . . . . . . . . . . . . . . . Pick Up 270 | 1 19 2 14 13 11 11 7 3 1 6 10 1 7 1 1 . . 12 3 12 . 17 14 2 . 10 . 7 3 2 2 . 3 9 18 6 8 13 21 Fast Attach 156 | . 1 2 4 6 3 7 8 . 5 1 4 4 . . . . . 2 2 7 4 13 4 . 2 13 . 5 . . 4 . 6 15 17 8 6 . 3 Attach 98 | 1 1 . 5 7 2 1 . . . 1 1 . 2 . 1 . 2 5 2 3 . 6 15 1 . . . 6 2 1 . . 2 1 7 . 4 11 8 Detach 10 | . . . 1 . . . . . . . . . . . . . 1 . . . . 1 1 . . 1 . . . . . . . 2 2 . . . 1 Swap 165 | . 4 1 5 12 9 7 . 1 3 3 . 5 6 3 2 . 1 5 2 . . 10 12 2 . 3 4 3 . 4 1 2 14 9 11 6 4 1 10 Drop 375 | . 11 5 9 17 18 25 13 4 4 13 8 6 5 1 1 . . 12 3 18 4 25 8 2 2 29 . 6 1 1 5 . 9 21 31 14 16 3 25 Fire 1357 | 3 44 21 48 80 45 69 18 46 29 61 43 73 17 19 15 . 15 19 34 6 14 82 64 16 1 28 9 53 19 12 . 14 27 52 58 59 49 44 51 Melee 9 | . . . . 5 . . . . . . . 2 . . . . . 1 . . . 1 . . . . . . . . . . . . . . . . . Ram . | . . . . . . . . . . . . . . . . . . . . . . . . . . . . . . . . . . . . . . . . Kick 9 | . . . . . . . . . . . . . . . . . . . . . . . 1 . . . . . . . . . 4 1 . . 1 . 2 Crush 16 | . 3 1 . 6 . . . . . . . 4 1 . . . . 1 . . . . . . . . . . . . . . . . . . . . . Escape Stasis 3 | . . . . . . . . . . . . . . . . . . . 1 . . . . . . . . 1 . . . . . . 1 . . . . Rewire 206 | . . . . . . . . . . . . 20 . 12 . . 12 27 61 . . . . 30 . 42 . . . 1 . . . . 1 . . . . Trap . | . . . . . . . . . . . . . . . . . . . . . . . . . . . . . . . . . . . . . . . . Miscellaneous 4 | . . . . . . . . . . . . . . . . . . . . 2 . 1 . . . . . . . . . . . . . . . . 1 Route ------- -11/Scrapyard -10/Materials (discovered 5 exits: *Mat x3 / *Min x2) -10/Mines (discovered 3 exits: *Mat x2 / [*Exi]) -9/Materials (discovered 4 exits: *Mat / Min x2 / *Sto) -9/Storage -8/Materials (discovered 2 exits: *Fac / Gar) -8/Garrison (discovered 2 exits: *Mat x2) -8/Materials (discovered 2 exits: *Fac / Gar) -8/Garrison (discovered 3 exits: *Mat x3) -8/Materials -8/Garrison (discovered 4 exits: *Mat x4) -8/Materials (discovered 2 exits: *Fac / Gar) -8/Garrison (discovered 3 exits: *Fac x3) -7/Factory (discovered 6 exits: Fac x4 / *Low x2) -7/Lower Caves -7/Lower Caves (discovered 2 exits: *Fac / *Dat) -7/Data Miner -6/Proximity Caves -6/Factory (discovered 4 exits: Fac / Low / *Ext x2) -6/Extension (discovered 2 exits: *Fac / [*Cet]) -6/Cetus (discovered 2 exits: *Fac / [*Arc]) -6/Archives (discovered 2 exits: *Hub x2) -6/Hub_04(d) (discovered 4 exits: *Fac x4) -5/Factory (discovered 2 exits: *Upp x2) -5/Upper Caves -5/Upper Caves (discovered 2 exits: *Fac / *War) -5/Warlord -4/Proximity Caves -4/Factory (discovered 2 exits: *Upp x2) -4/Upper Caves -4/Upper Caves -4/Zhirov -3/Proximity Caves -3/Research (discovered 6 exits: Res x3 / Arm / *Tes x2) -3/Testing -2/Research (discovered 4 exits: *Acc x3 / *Qua) -2/Quarantine -2/Section 7 -1/Access -1/Command (discovered 2 exits: *Sur x2) 0b11 Command History --------- Turn | Location | Event 10 | -11/Scrapyard | Discovered new exit (range 2) 36 | -11/Scrapyard | Entered Materials 183 | -10/Materials | Discovered new exit (range 12) 317 | -10/Materials | Build established: Mutant 342 | -10/Materials | Discovered new exit (range 12) 581 | -10/Materials | Central database locked down 777 | -10/Materials | Discovered new exit (range 6) 931 | -10/Materials | Identified exit to Mines 1116 | -10/Materials | Discovered new exit (range 14) 1474 | -10/Materials | Entered Mines 1476 | -10/Mines | Discovered new exit (range 11) 1663 | -10/Mines | Learned Materials terminal intel 1711 | -10/Mines | A weapon hastily lodged in a ceiling crevice suddenly fell to the ground 1735 | -10/Mines | Discovered new exit (range 8) 1789 | -10/Mines | Deemed a non-threat by the Exiles lab entrance 1791 | -10/Mines | Discovered new exit (range 5) 2792 | -10/Mines | Entered Materials 2792 | -9/Materials | Accompanied by 1 ally 2792 | -9/Materials | Evolved 2 slots: Propulsion x1, Utility x1 2793 | -9/Materials | Loaded intel: 12 terminal locations 3082 | -9/Materials | Build established: Scavenger-Mutant 3131 | -9/Materials | Identified exit to Mines 3131 | -9/Materials | Identified exit to Storage 3273 | -9/Materials | Discovered new exit (range 15) 3585 | -9/Materials | Entered Storage 3585 | -9/Storage | Accompanied by 1 ally 4061 | -9/Storage | Repaired Lgt. Treads 4171 | -9/Storage | Repaired Lgt. Armor Plating 4205 | -9/Storage | Repaired Cooling System 4540 | -9/Storage | Discovered new exit (range 15) 5196 | -9/Storage | Build established: Mutant 5566 | -9/Storage | Build established: Scavenger-Mutant 5712 | -9/Storage | Entered Materials 5712 | -8/Materials | Evolved 2 slots: Propulsion x1, Weapon x1 5819 | -8/Materials | Destroyed 7 combat bots 6174 | -8/Materials | Discovered new exit (range 8) 6272 | -8/Materials | Build established: Gunner 6324 | -8/Materials | Destroyed 7 combat bots 6376 | -8/Materials | Identified exit to Garrison 6376 | -8/Materials | Entered Garrison 6426 | -8/Garrison | Triggered checkpoint 6540 | -8/Garrison | Triggered checkpoint 7118 | -8/Garrison | Discovered new exit (range 15) 7228 | -8/Garrison | Triggered checkpoint 7249 | -8/Garrison | Build established: Scavenger-Gunner 7294 | -8/Garrison | Triggered checkpoint 7591 | -8/Garrison | Discovered new exit (range 13) 7612 | -8/Garrison | Attempted to access garrison exit controls, blocked by remote lockdown 7791 | -8/Garrison | Entered Materials 8118 | -8/Materials | Discovered new exit (range 15) 8135 | -8/Materials | Garrison activated, responded to threat 8137 | -8/Materials | Build established: Scavenger-Tank 8214 | -8/Materials | Identified exit to Garrison 8214 | -8/Materials | Entered Garrison 8278 | -8/Garrison | Triggered checkpoint 8312 | -8/Garrison | Triggered checkpoint 8390 | -8/Garrison | Discovered new exit (range 7) 8410 | -8/Garrison | Spotted B-75 Beast 8416 | -8/Garrison | Triggered checkpoint 8855 | -8/Garrison | Discovered new exit (range 15) 8952 | -8/Garrison | Triggered checkpoint 9022 | -8/Garrison | Triggered checkpoint 9150 | -8/Garrison | Discovered new exit (range 11) 9408 | -8/Garrison | Triggered checkpoint 9428 | -8/Garrison | Garrison Relay disabled 9579 | -8/Garrison | Attempted to access garrison exit controls, blocked by remote lockdown 9699 | -8/Garrison | Attempted to access garrison exit controls, blocked by remote lockdown 9837 | -8/Garrison | Entered Materials 10076 | -8/Materials | Repaired Imp. Heavy Treads 10115 | -8/Materials | Repaired Hrd. Medium Armor Plating 10227 | -8/Materials | Garrison activated, responded to threat 10367 | -8/Materials | Identified exit to Garrison 10369 | -8/Materials | Entered Garrison 10460 | -8/Garrison | Destroyed 7 combat bots 10546 | -8/Garrison | Triggered checkpoint 10598 | -8/Garrison | Triggered checkpoint 10605 | -8/Garrison | Discovered new exit (range 12) 10718 | -8/Garrison | Triggered checkpoint 10844 | -8/Garrison | Triggered checkpoint 10916 | -8/Garrison | Discovered new exit (range 13) 10982 | -8/Garrison | Triggered checkpoint 11076 | -8/Garrison | Triggered checkpoint 11270 | -8/Garrison | Triggered checkpoint 11314 | -8/Garrison | Discovered new exit (range 13) 11362 | -8/Garrison | Discovered new exit (range 15) 11362 | -8/Garrison | Discovered new exit (range 58) 11362 | -8/Garrison | Discovered new exit (range 65) 11362 | -8/Garrison | Discovered new exit (range 42) 11640 | -8/Garrison | Attempted to access garrison exit controls, blocked by remote lockdown 11766 | -8/Garrison | Entered Materials 12071 | -8/Materials | Repaired Imp. Heavy Treads 12378 | -8/Materials | Repaired Imp. Heavy Treads 12442 | -8/Materials | Repaired Imp. Heavy Treads 12781 | -8/Materials | Discovered new exit (range 12) 12957 | -8/Materials | Identified exit to Garrison 12957 | -8/Materials | Entered Garrison 12968 | -8/Garrison | Triggered checkpoint 13084 | -8/Garrison | Triggered checkpoint 13101 | -8/Garrison | Core integrity fell below 50% 13240 | -8/Garrison | Triggered checkpoint 13339 | -8/Garrison | Destroyed 8 combat bots 13422 | -8/Garrison | Destroyed 9 combat bots 13513 | -8/Garrison | Discovered new exit (range 10) 13556 | -8/Garrison | Triggered checkpoint 13596 | -8/Garrison | Triggered checkpoint 13840 | -8/Garrison | Triggered checkpoint 13894 | -8/Garrison | Discovered new exit (range 13) 13970 | -8/Garrison | Triggered checkpoint 14232 | -8/Garrison | Attempted to access garrison exit controls, blocked by remote lockdown 14379 | -8/Garrison | Attempted to access garrison exit controls, blocked by remote lockdown 14588 | -8/Garrison | Rescued a captive Derelict 14613 | -8/Garrison | Discovered new exit (range 10) 14629 | -8/Garrison | Entered Factory 14629 | -7/Factory | Accompanied by 4 allies 14629 | -7/Factory | Evolved 2 slots: Utility x2 14870 | -7/Factory | Identified exit to Factory 15022 | -7/Factory | Build established: Scavenger-Gunner 15141 | -7/Factory | Identified exit to Lower Caves 15272 | -7/Factory | Entered Lower Caves 15278 | -7/Lower Caves | Met a Warlord Commander 15279 | -7/Lower Caves | Learned location of Warlord (-5) 15281 | -7/Lower Caves | Found Encrypted Comm Array 15833 | -7/Lower Caves | Attracted the attention of an 0b10 outpost 15868 | -7/Lower Caves | Destroyed 9 combat bots 15917 | -7/Lower Caves | Discovered new exit (range 14) 15949 | -7/Lower Caves | Entered another Lower Caves area 15949 | -7/Lower Caves | Accompanied by 2 allies 16092 | -7/Lower Caves | Discovered exit to Factory (range 15) 16492 | -7/Lower Caves | Discovered new exit (range 10) 16545 | -7/Lower Caves | Entered Data Miner 16545 | -7/Data Miner | Discovered new exit (range 6) 16576 | -7/Data Miner | Met Data Miner 16605 | -7/Data Miner | Learned location of Section 7 (-2) 16605 | -7/Data Miner | Acquired the access code to Warlord's prototype stash 16629 | -7/Data Miner | Received God Mode back door access code from Data Miner 16664 | -7/Data Miner | Entered Proximity Caves 16942 | -6/Proximity Caves | Escorted by Enhanced Grunt 17161 | -6/Proximity Caves | Attracted the attention of an 0b10 outpost 17243 | -6/Proximity Caves | Learned Factory security intel 17343 | -6/Proximity Caves | Learned 8 Factory zone layouts 17345 | -6/Proximity Caves | Discovered exit to Factory (range 8) 17358 | -6/Proximity Caves | Entered Factory 17358 | -6/Factory | Accompanied by 3 allies 17358 | -6/Factory | Evolved 2 slots: Utility x2 17359 | -6/Factory | Identified exit to Lower Caves 17360 | -6/Factory | Identified exit to Extension 17360 | -6/Factory | Identified exit to Factory 17370 | -6/Factory | Garrison activated, responded to threat 17545 | -6/Factory | Joined by Warlord Pyro squad 17687 | -6/Factory | Joined by Warlord Dakka squad 17698 | -6/Factory | Build established: Tank 17820 | -6/Factory | Discovered exit to Extension (range 16) 17866 | -6/Factory | Joined by Warlord Dakka squad 18021 | -6/Factory | Build established: Scavenger-Gunner 18030 | -6/Factory | Incoming investigation squad redirected 18172 | -6/Factory | Fabricated Combat Drone Bay? 18209 | -6/Factory | Joined by Warlord Infantry squad 18514 | -6/Factory | Fabricated Combat Drone Bay (x1) 18604 | -6/Factory | Entered Extension 18604 | -6/Extension | Accompanied by 2 allies 18946 | -6/Extension | Energy Cycler disabled 18946 | -6/Extension | Rescued a captive Derelict 18946 | -6/Extension | Rescued a captive Derelict 18948 | -6/Extension | Rescued a captive Derelict 18950 | -6/Extension | Rescued a captive Derelict 18951 | -6/Extension | Rescued a captive Derelict 18951 | -6/Extension | Rescued a captive Derelict 18963 | -6/Extension | Rescued a captive Derelict 19026 | -6/Extension | Spotted B-75 Beast 19217 | -6/Extension | Crushed by falling debris 19630 | -6/Extension | Build established: Tank 19726 | -6/Extension | Discovered exit to Factory (range 10) 19728 | -6/Extension | Discovered new exit (range 6) 19755 | -6/Extension | Disrupted transfer network 19755 | -6/Extension | Entered Cetus 19755 | -6/Cetus | Accompanied by 4 allies 19788 | -6/Cetus | Spotted Cetus Guard 19793 | -6/Cetus | Spotted Cetus Guard 19793 | -6/Cetus | Spotted Cetus Guard 19793 | -6/Cetus | Spotted Cetus Guard 19797 | -6/Cetus | Allies destroyed Cetus Guard 19801 | -6/Cetus | Allies destroyed Cetus Guard 19807 | -6/Cetus | Allies destroyed Cetus Guard 19811 | -6/Cetus | Allies destroyed Cetus Guard 19932 | -6/Cetus | Discovered new exit (range 15) 19962 | -6/Cetus | Discovered exit to Factory (range 24) 19965 | -6/Cetus | Spotted Cetus Guard 19965 | -6/Cetus | Spotted Cetus Guard 19969 | -6/Cetus | Spotted Cetus Guard 19969 | -6/Cetus | Destroyed Cetus Guard 19973 | -6/Cetus | Spotted Cetus Guard 19976 | -6/Cetus | Allies destroyed Cetus Guard 19981 | -6/Cetus | Destroyed Cetus Guard 19983 | -6/Cetus | Allies destroyed Cetus Guard 20002 | -6/Cetus | Met Revision 17 20091 | -6/Cetus | Entered Archives 20091 | -6/Archives | Accompanied by 4 allies 20120 | -6/Archives | Build established: Scavenger-Gunner 20124 | -6/Archives | Discovered new exit (range 23) 20246 | -6/Archives | Discovered new exit (range 15) 21632 | -6/Archives | Entered Hub_04(d) 21632 | -6/Hub_04(d) | Accompanied by 1 ally 21717 | -6/Hub_04(d) | Discovered exit to Factory (range 22) 22678 | -6/Hub_04(d) | Incoming investigation squad redirected 23075 | -6/Hub_04(d) | Network Hub disabled 23083 | -6/Hub_04(d) | Spotted Lightning 23083 | -6/Hub_04(d) | Spotted Lightning 23126 | -6/Hub_04(d) | Destroyed Lightning 23142 | -6/Hub_04(d) | Destroyed Lightning 23147 | -6/Hub_04(d) | Spotted Lightning 23151 | -6/Hub_04(d) | Found Prototype Device 23151 | -6/Hub_04(d) | Identified Exp. EM Disruption Field 23183 | -6/Hub_04(d) | Destroyed Lightning 23188 | -6/Hub_04(d) | Found Prototype Processor 23189 | -6/Hub_04(d) | Identified Exp. Targeting Computer 23192 | -6/Hub_04(d) | Found Prototype Energy Cannon 23194 | -6/Hub_04(d) | Identified EMDS 23213 | -6/Hub_04(d) | Found Prototype Device 23214 | -6/Hub_04(d) | Identified Exp. Phase Shifter 23227 | -6/Hub_04(d) | Found Exp. EM Disruption Field 23329 | -6/Hub_04(d) | Spotted Lightning 23332 | -6/Hub_04(d) | Destroyed Lightning 23335 | -6/Hub_04(d) | Spotted Lightning 23336 | -6/Hub_04(d) | Spotted Lightning 23348 | -6/Hub_04(d) | Destroyed Lightning 23358 | -6/Hub_04(d) | Destroyed Lightning 23373 | -6/Hub_04(d) | Found EMDS 23468 | -6/Hub_04(d) | Build established: Scavenger-Tank 23655 | -6/Hub_04(d) | Network Hub disabled 23846 | -6/Hub_04(d) | Spotted Lightning 23847 | -6/Hub_04(d) | Spotted Lightning 23848 | -6/Hub_04(d) | Spotted Lightning 23867 | -6/Hub_04(d) | Entered Factory 23867 | -5/Factory | Evolved 2 slots: Power x1, Utility x1 23995 | -5/Factory | Joined by Warlord Ghost squad 24037 | -5/Factory | Fabricated Combat Drone Bay (x1) 24651 | -5/Factory | Joined by Warlord Muscle squad 24744 | -5/Factory | Joined by Warlord Muscle squad 24767 | -5/Factory | Identified exit to Upper Caves 25089 | -5/Factory | Cargo convoy interrupted 25118 | -5/Factory | Entered Upper Caves 25175 | -5/Upper Caves | Identified exit to Upper Caves 25282 | -5/Upper Caves | Attracted the attention of an 0b10 outpost 25364 | -5/Upper Caves | Spotted B-75 Beast 25414 | -5/Upper Caves | Learned Factory garrison access intel 25459 | -5/Upper Caves | Attacked by a delusional Derelict stockpiling Unaware 25632 | -5/Upper Caves | Entered another Upper Caves area 25632 | -5/Upper Caves | Accompanied by 4 allies 25715 | -5/Upper Caves | Discovered new exit (range 41) 25730 | -5/Upper Caves | Identified exit to Warlord 25880 | -5/Upper Caves | Entered Warlord 25880 | -5/Warlord | Accompanied by 2 allies 26059 | -5/Warlord | Found Prototype Device 26232 | -5/Warlord | Build established: Scavenger-Mutant 26316 | -5/Warlord | Met Warlord 26334 | -5/Warlord | Opened Warlord's prototype stash 26341 | -5/Warlord | Warlord's base attacked by MAIN.C 26359 | -5/Warlord | Found Prototype Processor 26359 | -5/Warlord | Identified Spectral Analyzer 26366 | -5/Warlord | Found Prototype Device 26366 | -5/Warlord | Identified Thermal Barrier 26375 | -5/Warlord | Found Prototype Device 26375 | -5/Warlord | Identified Exp. Cloaking Device 26547 | -5/Warlord | Found Prototype Energy Gun 26547 | -5/Warlord | Identified Vortex Rifle 26550 | -5/Warlord | Found Prototype Energy Cannon 26550 | -5/Warlord | Identified Vortex Driver 26557 | -5/Warlord | Found Vortex Driver 26657 | -5/Warlord | Build established: Scavenger-Tank 26691 | -5/Warlord | Warlord forces counterattacked 26701 | -5/Warlord | Spotted Executioner 26728 | -5/Warlord | Destroyed 10 combat bots 26752 | -5/Warlord | Found Prototype Device 26752 | -5/Warlord | Identified Adv. Kinecellerator 26770 | -5/Warlord | P-70 Sage assimilated allied TN-9VJ(g) 26780 | -5/Warlord | Spotted Striker 26782 | -5/Warlord | Spotted Striker 26793 | -5/Warlord | Destroyed Striker 27016 | -5/Warlord | Warlord base infiltrated, sounded retreat 27017 | -5/Warlord | Enhanced Grunt warped into view 27017 | -5/Warlord | Enhanced Grunt warped into view 27017 | -5/Warlord | Enhanced Grunt warped into view 27017 | -5/Warlord | Enhanced Demolisher warped into view 27017 | -5/Warlord | Enhanced Demolisher warped into view 27017 | -5/Warlord | Enhanced Demolisher warped into view 27155 | -5/Warlord | Spotted Executioner 27190 | -5/Warlord | Discovered new exit (range 14) 27262 | -5/Warlord | Entered Proximity Caves 27569 | -4/Proximity Caves | Discovered new exit (range 8) 27589 | -4/Proximity Caves | Entered Factory 27589 | -4/Factory | Evolved 2 slots: Utility x2 27590 | -4/Factory | Loaded intel: 4 garrison access locations 28019 | -4/Factory | Spotted B-86 Titan 28110 | -4/Factory | Identified exit to Upper Caves 28202 | -4/Factory | Repaired Broken Enh. Biometal Leg 28286 | -4/Factory | Crushed by falling debris 28476 | -4/Factory | Entered Upper Caves 28493 | -4/Upper Caves | Identified exit to Upper Caves 28791 | -4/Upper Caves | Attracted the attention of an 0b10 checkpoint 28900 | -4/Upper Caves | Entered another Upper Caves area 28904 | -4/Upper Caves | Attracted the attention of an 0b10 checkpoint 29037 | -4/Upper Caves | Learned Research security intel 29091 | -4/Upper Caves | Encountered a Warlord checkpoint 29205 | -4/Upper Caves | Discovered new exit (range 9) 29214 | -4/Upper Caves | Entered Zhirov 29214 | -4/Zhirov | Discovered new exit (range 3) 29232 | -4/Zhirov | Met Zhirov 29257 | -4/Zhirov | Found Alien Artifact 29257 | -4/Zhirov | Identified Integrated Reactor 29257 | -4/Zhirov | Installed Integrated Reactor, increased core energy generation (+10) 29307 | -4/Zhirov | Found Alien Artifact 29345 | -4/Zhirov | Learned location of Quarantine (-2) 29345 | -4/Zhirov | Learned location of Testing (-3) 29345 | -4/Zhirov | Learned location of Command (-1) 29351 | -4/Zhirov | Zhirov requested help retrieving the SGEMP Prototype 29379 | -4/Zhirov | Entered Proximity Caves 29830 | -3/Proximity Caves | Attracted the attention of an 0b10 checkpoint 29854 | -3/Proximity Caves | Discovered new exit (range 4) 29871 | -3/Proximity Caves | Entered Research 29871 | -3/Research | Evolved 2 slots: Propulsion x1, Utility x1 29985 | -3/Research | Identified exit to Research 30069 | -3/Research | Identified exit to Armory 30069 | -3/Research | Identified exit to Testing 30487 | -3/Research | Allied Derelicts emerged from ambush trap array 30524 | -3/Research | Entered Testing 30676 | -3/Testing | Found Prototype Launcher 30676 | -3/Testing | Identified Z-bomb Delivery System 30911 | -3/Testing | Found Prototype Hackware 30936 | -3/Testing | Found Prototype Energy Cannon 31020 | -3/Testing | Found Prototype Processor 31020 | -3/Testing | Identified Exp. Signal Interpreter 31115 | -3/Testing | Spotted Striker 31116 | -3/Testing | Spotted Striker 31303 | -3/Testing | Build established: Hacker-Tank 31308 | -3/Testing | Garrison activated, responded to threat 31421 | -3/Testing | Entered Research 31421 | -2/Research | Warlord forces began assault on 0b10 31421 | -2/Research | Evolved 2 slots: Power x1, Propulsion x1 31446 | -2/Research | Distinguished unit "Bridgeowners Association" dispatched to help 31446 | -2/Research | Distinguished unit "Department No. 42" dispatched to help 31448 | -2/Research | Met up with Warlord 31531 | -2/Research | Research machine network offline 31574 | -2/Research | Spotted B-90 Cyclops 31717 | -2/Research | Spotted B-90 Cyclops 31781 | -2/Research | Discovered new exit (range 18) 31808 | -2/Research | Identified exit to Access 31821 | -2/Research | Spotted Executioner 31821 | -2/Research | Spotted Striker 31821 | -2/Research | Spotted Executioner 31822 | -2/Research | Spotted Striker 31839 | -2/Research | Spotted Executioner 31843 | -2/Research | Spotted Executioner 31890 | -2/Research | Borebot progress halted 31925 | -2/Research | P-80 Master assimilated allied R1-861(i) 31980 | -2/Research | Borebot progress halted 32170 | -2/Research | Build established: Scavenger-Tank 32193 | -2/Research | Crushed by falling debris 32212 | -2/Research | Discovered exit to Access (range 20) 32282 | -2/Research | Spotted Striker 32284 | -2/Research | Spotted Executioner 32341 | -2/Research | Spotted Striker 32366 | -2/Research | Destroyed Striker 32404 | -2/Research | Identified Imp. Potential Cannon 32430 | -2/Research | Discovered exit to Access (range 17) 32431 | -2/Research | Spotted B-90 Cyclops 32595 | -2/Research | Spotted Striker 32598 | -2/Research | Spotted Striker 33139 | -2/Research | Found Prototype Processor 33142 | -2/Research | Found Adv. Kinecellerator 33502 | -2/Research | Found Imp. Powered Armor 33617 | -2/Research | Discovered new exit (range 21) 33656 | -2/Research | Entered Quarantine 33707 | -2/Quarantine | Spotted Alpha 7 33746 | -2/Quarantine | Destroyed Alpha 7 33756 | -2/Quarantine | Found Prototype Ballistic Gun 33756 | -2/Quarantine | Identified Multirail 33763 | -2/Quarantine | Found Prototype Processor 33763 | -2/Quarantine | Identified Exp. Target Analyzer 33792 | -2/Quarantine | Found Alien Launcher 33849 | -2/Quarantine | Garrison activated, responded to threat 33852 | -2/Quarantine | Found Alien Artifact 33852 | -2/Quarantine | Identified Phase Redirector 33891 | -2/Quarantine | Found Alien Artifact 34018 | -2/Quarantine | Destroyed 9 combat bots 34332 | -2/Quarantine | Spotted Fortress 34411 | -2/Quarantine | Discovered new exit (range 6) 34417 | -2/Quarantine | Entered Section 7 34504 | -2/Section 7 | Found Alien Artifact 34536 | -2/Section 7 | Identified Transdimensional Reconstructor 34536 | -2/Section 7 | Identified Spacefold Activator 34536 | -2/Section 7 | Identified Subatomic Replicator 34536 | -2/Section 7 | Identified System Mapper 34536 | -2/Section 7 | Identified Wardrone Bay 34536 | -2/Section 7 | Identified Exp. Core Analyzer 34536 | -2/Section 7 | Identified Sigix Terminator 34645 | -2/Section 7 | Found Alien Artifact 34645 | -2/Section 7 | Identified Microwarp Drive 34723 | -2/Section 7 | Spotted B-90 Cyclops 34851 | -2/Section 7 | Spotted S7 Guard 34877 | -2/Section 7 | Destroyed S7 Guard 34905 | -2/Section 7 | Found Prototype Protection 34917 | -2/Section 7 | Found Alien Artifact 35004 | -2/Section 7 | Identified Navigation Efficiency Matrix 35167 | -2/Section 7 | First assault squad dispatched 35234 | -2/Section 7 | Entered Access 35234 | -1/Access | Evolved 2 slots: Propulsion x1, Utility x1 35547 | -1/Access | Identified Hvy. Regenerative Plating 35568 | -1/Access | Build established: Hacker-Gunner 35577 | -1/Access | Lost 8 parts (3p1n2u2w) 35721 | -1/Access | Discovered new exit (range 7) 35729 | -1/Access | Entered Command 35840 | -1/Command | Identified exit to Surface 36131 | -1/Command | Disengaged cave seal 36131 | -1/Command | Derelicts emerged from the dark tunnel 36131 | -1/Command | Welcomed Warlord to Command 36346 | -1/Command | Spotted B-99 Colossus 36398 | -1/Command | Found Adv. Powered Armor 36402 | -1/Command | Found Adv. Powered Armor 36440 | -1/Command | Spotted M Guard 36440 | -1/Command | Spotted M Guard 36443 | -1/Command | Fired Sigix Terminator 36443 | -1/Command | Destroyed Combat Programmer 36443 | -1/Command | Destroyed Combat Programmer 36448 | -1/Command | Spotted Striker 36449 | -1/Command | Spotted Alpha 7 36449 | -1/Command | Spotted Alpha 7 36454 | -1/Command | Spotted Executioner 36479 | -1/Command | First assault squad dispatched 36502 | -1/Command | All MAIN.C guards destroyed 36526 | -1/Command | Incoming assault squad redirected 36536 | -1/Command | High security lockdown imminent 36601 | -1/Command | Warlord commented on Warlord statues 36616 | -1/Command | High security lockdown engaged 36634 | -1/Command | Used Subatomic Replicator to replicate Wardrone Bay 36643 | -1/Command | Met MAIN.C 36666 | -1/Command | Warlord shut down involuntarily 36667 | -1/Command | Allies destroyed MAIN.C Shell 36667 | -1/Command | 0b10 Conduit disabled 36667 | -1/Command | MAIN.C activated Command garrisons 36676 | -1/Command | Spotted Executioner 36676 | -1/Command | Spotted Executioner 36676 | -1/Command | Spotted Striker 36678 | -1/Command | Destroyed Executioner 36682 | -1/Command | Destroyed Executioner 36697 | -1/Command | Allies destroyed MAIN.C 36708 | -1/Command | Destroyed 14 combat bots 36709 | -1/Command | Discovered exit to Surface (range 49) 36709 | -1/Command | Discovered exit to Surface (range 77) 36709 | -1/Command | Extracted map data and part IDs from MAIN.C's data core 36877 | *** | Establishing 0b11! Last Messages --------------- 36787_ Wardrone sneak attacks. 36787_ Wardrone: "WARLORD FOREVER!" 36787_ Y-72 Warden destroyed. 36788_ Acquired 89 matter. 36788_ Wardrone retrieved by Wardrone Bay. 36796_ Penetrated by Slug. 36797_ Vortex penetrates H-88 Terminator. 36797_ Destroyed Adv. Phase Shifter. 36797_ Vortex penetrates H-88 Terminator. 36797_ H-88 Terminator destroyed. 36803_ K-01 Serf collects debris. 36805_ System corrupted: Substantial component data lost. 36806_ Acquired 17 matter. 36806_ K-01 Serf collects debris. 36810_ Acquired 14 matter. 36810_ K-01 Serf collects debris. 36812_ Acquired 14 matter. 36813_ K-01 Serf collects debris. 36836_ DVMMEWQ R0A|CHVYR9|TDP#TH#L|>>|#ZQM9QC 36862_ IMV/ZMVLYUX>GFIJAUZ2% 9N7E Map ----- +----------------------------------------------------+ | #??# ##+####### # #?# #?#?# | | #+########## ### ## = #?###+####+###?#?# | | ## #?# ## #??# #??#?# | | ## #?# ## #### ^ #??#?# | | ## #?# ## + ^ #??#?# | | ############ ## # ^ !^! #??#?# | | # #""""! ##""### !! ###### | | # =!%!! * * % | | ###########[=%% =!!=[!%! % | | ##########"*%[= !=[!![[[ | | % ==* #####[%* ##+####### %##"######## | | ############# ###???######## #??# [ ####????#?# | | ?????????####+#########????# #??#% !#???????#?# | | ?######### #????# #??# #???????#?# | | ## ## #????# #### ###?????#?? | | ^ ## ######! ## #?????### | | ^ ## # # ## !%! #???????? | | ## ###### ## #???????? | | ## #????# ## #???????? | | ## ## #????# ## #???????? | | ### #### "" #????####### #???????? | | #?# #??# ""T""" #??????????# #???????? | | #?# #??# """"" #?????####### ##???????? | | #?# #??# ####### # #????????? | | ### ##?# ## ## # #????????? | | ## ############+#### @ ## + #????????? | | ## T" ## # ######???? | | ## "" ## # # #???? | | ## ########## ########## + # #???? | | ####+####???????# #????????# # # #???? | | #???????# #????????# # # #???? | | #???????# #????????# # # #???? | | #?????### ###??????####### # #???? | | #?????# ############## # #???? | | #?????# # #???? | | #?????# " ############## + #???? | | #?????# "T #?????????######+########???? | | #?????# #?????????# #???? | | #?????# #?????????# ##??? | | #########+#+########???# """ #??? | | # #???# ""R" ##??? | | # #???# "" " #???? | | ######### """" """" #???# #???? | | ????????# """" """" #???# #???? | | ????????# """" """" ##### #???? | | ????????# """" """" # # #???? | | ????????# ##### #???? | | ????????# #???# #???? | | ????????####################???###############???? | | ?????????????????????????????????????????????????? | +----------------------------------------------------+ Best States ------------- Heat Dissipation 94 Energy Generation 77 Energy Capacity 1100 Matter Stores 300 Matter Capacity 300 Sight Range 24 Robot Scan Range 16 Terrain Scan Range 16 Terrain Scan Density 10 Jamming Range 16 Cloak Strength 4 Additional Mass Support 12 Armor Coverage 1400 Resistance: KI 50 Resistance: TH 70 Resistance: EX 20 Resistance: EM 95 Resistance: I 20 Resistance: S 20 Resistance: P 20 Phase Shifting 20 Evasion (%) 75 Targeting Accuracy 20 Target Analysis 10 Core Analysis 8 Armor Integrity Analysis 40 Recoil Reduction 4 Energy Filtering 30 Kinecelleration 50 Salvage Targeting 3 Offensive Hacking 58 Authchip Count 3 Item Schematics ----------------- Sensor Array | -10/Materials | Hacked Hcp. Storage Unit | -10/Materials | Hacked Lrg. Storage Unit | -10/Materials | Hacked Med. Storage Unit | -10/Materials | Hacked Sml. Storage Unit | -10/Materials | Hacked Signal Interpreter | -10/Mines | Hacked Assault Rifle | -9/Materials | Scanalyzed Mak. Axe | -9/Materials | Scanalyzed Lgt. Treads | -9/Materials | Scanalyzed Plasma Cutter | -9/Materials | Scanalyzed Terrain Scan Processor | -9/Materials | Extracted Hpw. Tractor Beam | -9/Materials | Extracted Particle Cannon | -9/Materials | Extracted Seismic Detector | -9/Materials | Extracted Lgt. Armor Plating | -9/Materials | Hacked Hacking Suite | -9/Storage | Hacked Lgt. EM Pulse Cannon | -9/Storage | Hacked Combat Drone Bay | -7/Data Miner | Free Lgt. Regenerative Plating | -7/Data Miner | Free Biomechanical Wings | -7/Data Miner | Free Thermal Defense Suite | -7/Data Miner | Free Imp. Heavy Laser | -7/Data Miner | Free Nuclear Pulse Array | -7/Data Miner | Free Imp. Corruption Screen | -7/Data Miner | Free Variable Charge Gun | -7/Data Miner | Free Magnetic Acceleration Cannon | -7/Data Miner | Free Imp. Force Field | -7/Data Miner | Free Hyp. Gauss Rifle | -4/Factory | Hacked Hyp. Coil Gun | -4/Factory | Hacked Adv. Salvage Targeting Computer | -4/Factory | Hacked Assault Drone Bay | -4/Zhirov | Free Exp. Heat Sink | -4/Zhirov | Free Exp. Optical Array | -4/Zhirov | Free Imp. Arc Thrower | -4/Zhirov | Free Centrium Leg | -3/Research | Hacked Cmb. Linear Gravjet | -2/Section 7 | Hacked Robot Schematics ------------------ M-13 Machinist | -9/Storage | Hacked R-10 Processor | -7/Data Miner | Free M-28 Smith | -7/Data Miner | Free P-60 Hacker | -7/Data Miner | Free S-27 Virus | -7/Data Miner | Free A-15 Conveyor | -7/Data Miner | Free Y-54 Guardian | -7/Data Miner | Free Fabricated ------------ Combat Drone Bay | x1 | -6/Factory Combat Drone Bay | x1 | -6/Factory Combat Drone Bay | x1 | -5/Factory | Authchip Alien Tech Used ----------------- Integrated Reactor Phase Redirector Microwarp Drive Sigix Terminator Subatomic Replicator Achievements -------------- None Challenges ------------ None Game ------ Seed BackupWeldingGreatsword Manual? 0 Play Time 04:15:42 Cumulative 386.6 hours Start 2022.07.25 @ 00:12:07 End 2022.07.25 @ 17:25:26 Sessions 5 Manual Loads 0 Difficulty Adventurer Special Mode None Game No. 261 Rogue 212 Adventurer 31 Explorer 18 Win Type 1 Total 48 Types 21/2/3/11/2/0/3/2/4 Lore% 83 Gallery% 90 Achievement% 76 Wizard Run 0 Options --------- ASCII 0 Keyboard 0 Movement Numpad Keybinds 0 Fullscreen 2 Font 18/SmallcapsGlow Map View 76x50 Tactical HUD 1 Map Filters NONE Filters NONE Steam 1 RUN: 7922388b-4447-49a6-9831-1f10b49faa84